Workbook

Sheet FORMATO
A1: MIR1
B3: MUNICIPIO
E5: Nombre del Programa Presupuestario | CN5: Fecha de elaboración | CO5: 2023-10-01
E7: Clasificación Presupuestaria | AX7: Presupuesto asignado | BM7: =#REF!+#REF! ->  | CN7: Ejercicio Fiscal | CO7: 2024
E9: Dependencia responsable | W9: SECRETARÍA DE SEGURIDAD PÚBLICA, TRÁNSITO Y VIALIDAD | BY9: Eje del Programa de Gobierno Municipal | CA9: DOLORES HIDALGO, PARTICIPATIVO Y SEGURO
E12: RESUMEN | O12: INDICADORES PARA DESEMPEÑO | CD12: MEDIOS | CO12: SUPUESTOS | DA12: PONDERACIÓN
E13: NARRATIVO | O13: NOMBRE | Z13: FÓRMULA | AN13: UNIDAD DE | AV13: FRECUENCIA | BD13: LÍNEA BASE | BM13: META | BV13: TIPO | CD13: DE
E14: OBJETIVOS | Z14: (Forma de cálculo) | AN14: MEDIDA | AV14: DE MEDICIÓN | BD14: 2022 | BM14: 2023 | BV14: DIMENSIÓN | CD14: VERIFICACIÓN
B16: FIN | E16: Contribuir a mejorar las capacidades, atenciones y actuación de los elementos de la corporación que permitan generar un ambiente de seguridad en la sociedad | O16: Percepción de seguridad ciudadana | Z16: ((Porcentaje de percepción de seguridad en su colonia del 2024/porcentaje de percepción de seguridad en su colonia del año 2023)-1)*100 | AN16: Tasa | AV16: Anual | BD16: 2023 | BM16: 0.47 | BV16: Tipo | CD16: Encuesta de percepción de seguridad aplicada por el Centro Estatal de Información (documento físico) | CO16: La población siente seguridad en su colonia
BV18: Estrategico
BV19: Dimensión
BD20: 0.4302
BV21: Eficacia
B24: PROPÓSITO | E24: La Secretaría de Seguridad Pública, Tránsito y Vialidad realiza acciones efectivas de prevención que inhiben conductas antisociales y delictivas | O24: Delitos patrimoniales | Z24: ((Total de delitos patrimoniales en el municipio de Dolores Hidalgo en el año 2024/total de delitos patrimoniales en el municipio de Dolores Hidalgo en el año 2023)-1)*100 | AN24: Tasa | AV24: Trimestral | BD24: 2023 | BM24: -0.05 | BV24: Tipo | CD24: https://drive.google.com/file/d/11P9vsoobzZ0dBPWc8IthK1rPKPE-WNSK/view | CO24: La población adopta medidas de autocuidado
BV26: Estrategico
BV27: Dimensión
BD28: 0.02
BV29: Eficiencia
B32: COMPONENTE (1) | E32: Realizar acciones preventivas mediante operaciones policiales que inhiban las conductas antisociales en la población juvenil del municipio de Dolores Hidalgo, aplicadas | O32: Inhibir conductas antisociales | Z32: ((Total de detenidos en edad joven por infracción en el año 2024/ total de detenidos en edad jóven por infracción en el año 2023)-1*100 | AN32: Tasa | AV32: Trimestral | BD32: 2023 | BM32: -0.05 | BV32: Tipo | CD32: Informe de detenidos de la plataforma RND | CO32: Los jóvenes realizan acciones consideradas infracciones | DA32: 0.3
BV34: Estrategico
BV35: Dimensión
BD36: 0.0397
BV37: Eficiecia
C40: ACTIVIDAD (1.1) | E40: Coordinación con autoridades de los diferentes ordenes de gobierno para aplicar Operacines policiales conjuntas | O40: Coordinación Operativa | Z40: (Total de operativos coordinados realizados / total de operativos coordinados programados)*100 | AN40: Porcentaje | AV40: Mensual | BD40: 2024 | BM40: 1 | BV40: Tipo | CD40: Informes de resultados emitidos a FSPEhttps://seguridad.guanajuato.gob.mx/compromisos-municipales/ | CO40: Las corporaciones realizan una coordinación efectiva de acciones de seguridad
BV42: Gestion
BD43: 100 | BV43: Dimensión
BV45: Eficacia
C50: ACTIVIDAD (1.2) | E50: Aplicación de operaciones policiales de manera específica ante las actividades delincuenciales cosnideradas prioritarias para su atención | O50: operativos de alto impacto efectivos | Z50: (Total de operativos de alto impacto realizados / total de operativos de alto impacto programados)*100 | AN50: Porcentaje | AV50: Mensual | BD50: 2024 | BM50: 1 | BV50: Tipo | CD50: Informe de resultados remitidos a FSPE https://seguridad.guanajuato.gob.mx/compromisos-municipales/ | CO50: Existen condiciones para realizar los operativos
BV52: Estrategico
BD53: 100 | BV53: Dimensión
BV55: Eficiencia
B58: ACTIVIDAD (1.3) | E58: Participación en dispositivos de aceurdo a las actividades de los diferentes sectores | O58: Dispositivos sectorizados | Z58: (Total de dispositivos por sector social, económico o realizados / total de dispositivos por sector social, económico o programados)*100 | AN58: Porcentaje | AV58: Mensual | BD58: 2024 | BM58: 1 | BV58: Tipo | CD58: Bitacora de resultados | CO58: los diferentes sectores tienen actividades
BV60: Estrategico
BD61: 100 | BV61: Dimensión
BV63: Eficiencia
B66: COMPONENTE (2) | E66: Actividades informativas, ludicas, deportivas y de cualquier indole que contribuyan a la participación ciudadana en materia de seguridad pública realizadas | O66: Cobertura en prevención | Z66: (Total de población registrada en los programas de prevención/ total de la población en el municipio)*100 | AN66: Porcentaje | AV66: Mensual | BD66: 2024 | BM66: 1 | BV66: Tipo | CD66: Bitacora de resultados | CO66: La población tiene interes en participar en los programas | DA66: 0.3
BV68: Gestion
BV69: Dimensión
BD70: 1
BV71: Eficacia
C74: ACTIVIDAD (2.1) | E74: Transmisión de información preventiva y de autocuidado por diferentes medios físicos y tecnológicos. | O74: Campañas preventivas | Z74: (Total de campañas los diferentes sectores sociales diferentes medios físicos y tecnológicos./ total campañas programadasde los diferentes sectores sociales diferentes medios físicos y tecnológicos.)*100 | AN74: Porcentaje | AV74: Mensual | BD74: 2024 | BM74: 1 | BV74: Tipo | CD74: Bitacora de resultados | CO74: Las instituciones promueven las medidas preventivas
BV76: Estrategico
BD77: 100 | BV77: Dimensión
BV79: Eficiencia
C84: ACTIVIDAD (2.2) | E84: Aplicación de jornadas de capacitación en temas preventivos y de autocuidado a la población en general del municipio de Dolores Hidalgo | O84: Charlas informativas | Z84: (Total de charlas aplicadas en los diferentes sectores sociales del municipio de Dolores Hidalgo/ total charlas programadasen los diferentes sectores sociales del municipio de Dolores Hidalgo)*100 | AN84: Porcentaje | AV84: Mensual | BD84: 2024 | BM84: 1 | BV84: Tipo | CD84: Bitacora de resultados | CO84: La población tiene el interes para participar
BV86: Estrategico
BD87: 100 | BV87: Dimensión
BV89: Eficiencia
B92: ACTIVIDAD (2.3) | E92: Promoción de actividades conjuntas para el fortalecimiento de la organización social en beneficio de la seguridad colectiva. | O92: Comités ciudadanos | Z92: (Total de actividades realizadas con los comités de seguridad / total de actividades programadas con los comités de seguridad)*100 | AN92: Porcentaje | AV92: Mensual | BD92: 2024 | BM92: 1 | BV92: Tipo | CD92: Bitacora de resultados | CO92: los ciudadanos estan dispuestos aconformar los comités
BV94: Estrategico
BD95: 100 | BV95: Dimensión
BV97: Eficiencia
B100: COMPONENTE (3) | E100: Información importante para la aplicación de acciones de seguridad encaminada a la disminución de actos que vulneran la seguridad en el municipio de Dolores | O100: Productos de inteligencia | Z100: (Total de productos de inteligencia elaborados/ total de productos de inteligencia programados)*100 | AN100: Porcentaje | AV100: Mensual | BD100: 2024 | BM100: 1 | BV100: Tipo | CD100: Documento elaborado y resentado por la Unidad de Análisis | CO100: Las personas proporcionana la información | DA100: 0.2
BV102: Estrategico
BV103: Dimensión
BD104: 1
BV105: Eficiencia
C108: ACTIVIDAD (3.1) | E108: Atención de las llamadas de emergencia al sistema 9-1-1 | O108: Atención en llamadas de emergencia | Z108: (Total de porcentaje de cumplimiento en la atención de llamadas de emergencia/ total de porcentaje establecido por el Estado para la atenciónd e llamadas de emergencia)*100 | AN108: Porcentaje | AV108: Mensual | BD108: 2024 | BM108: 0.9 | BV108: Tipo | CD108: Informe de avance en procentaje de atención del C5i https://seguridad.guanajuato.gob.mx/compromisos-municipales/ | CO108: En la central de mergencias existe la capacidad de atención
BV110: Estrategico
BD111: 1 | BV111: Dimensión
BV113: Eficiencia
C118: ACTIVIDAD (3.2) | E118: Presentación al personal involucrado en la toma de desiciones para la aplicación de estrategias policiales de la información procesada | O118: presentación de datos | Z118: (Total de presentaciones realizadas de datos estratégicos/total de presentaciones prohgramadas)*100 | AN118: Porcentaje | AV118: Mensual | BD118: 2024 | BM118: 1 | BV118: Tipo | CD118: minuta de trabajo | CO118: Se programa sesión para presentación
BV120: Estrategico
BD121: 100 | BV121: Dimensión
BV123: Eficacia
B126: ACTIVIDAD (3.3) | E126: Generación de documentos con estrategias policiales diseñadas por tipo de evento | O126: planes operativos | Z126: (Total de Planes Sistemáticos de Operación realizados / total de Planes Sistemáticos de Operación programados)*100 | AN126: Porcentaje | AV126: Mensual | BD126: 2024 | BM126: 1 | BV126: Tipo | CD126: Planes Sistematicos aprobados y aplicados | CO126: la población y autoridades organizan los eventos
BV128: Estrategico
BD129: 100 | BV129: Dimensión
BV131: Eficiencia
B134: COMPONENTE (4) | E134: Gasto de recursos de manera responsable aplicados | O134: Programa Financiero | Z134: (Total del gasto realizado / total del gasto programado)*100 | AN134: Porcentaje | AV134: Mensual | BD134: 2024 | BM134: 0.95 | BV134: Tipo | CD134: Informe de avance del programa Financiero de Tesoreria Municipal | CO134: Disponibilidad de los recursos | DA134: 0.1
BV136: Gestion
BV137: Dimensión
BD138: 1
BV139: Economia
C142: ACTIVIDAD (4.1) | E142: Aquisición de equipo policial programado en los diferentes programas financieros | O142: Adquisición de equipo policial | Z142: (Total de adquisición de equipo realizados / total de adquisición de equipo programados)*100 | AN142: Porcentaje | AV142: Mensual | BD142: 2024 | BM142: 0.9 | BV142: Tipo | CD142: Contratos y convenios | CO142: El equipo cumple con las caracteristicas para su adquisición
BV144: Gestion
BD145: 1 | BV145: Dimensión
BV147: Economia
C152: ACTIVIDAD (4.2) | E152: Gestión y aplicación de cursos | O152: Cursos aplicados | Z152: (Total de elementos capacitados / total de elementos programados para capacitación)*100 | AN152: Porcentaje | AV152: Mensual | BD152: 2024 | BM152: 1 | BV152: Tipo | CD152: Constancias de participación | CO152: Las autoridades municipales gestionan los cursos de capacitación
BV154: Gestion
BD155: 1 | BV155: Dimensión
BV157: Eficiencia
B160: ACTIVIDAD (4.3) | E160: Aprobación de las evaluaciones de permanencia de los integrantes de los cuerpos de segruidad pública | O160: Elementos con Certificado Unico Policial | Z160: (Total de elementos con Certificado Unico Polical/Total de elementos adscritos a la corporación)*100 | AN160: Porcentaje | AV160: Mensual | BD160: 2024 | BM160: 1 | BV160: Tipo | CD160: Certificado vigente | CO160: Los elementos de Seguriudad Púlica aprueban los examnes de evaluación
BV162: Gestion
BD163: 1 | BV163: Dimensión
BV165: Eficiencia
B168: COMPONENTE (5) | E168: Informe trimestral del estatus de la seguridad en el municipio presentado | O168: Informes trimenstrales | Z168: (Total de informes trimestrales presentados/ total de informes trimestrales programados)*100 | AN168: Porcentaje | AV168: Mensual | BD168: 2024 | BM168: 1 | BV168: Tipo | CD168: Informes remitidos y presentados al H. Ayuntamiento | CO168: el H. ayuntamiento realiza sesión para analizar el Informe | DA168: 0.1
BV170: Estrategico
BV171: Dimensión
BD172: 100
BV173: Eficiacia
C176: ACTIVIDAD (5.1) | E176: Supervisión de los resultados ante las actividades realizadas | O176: Reuniones de mandos | Z176: (Total de reuniones de mandos realizados / total de reuniones de mandos programados)*100 | AN176: Porcentaje | AV176: Mensual | BD176: 2024 | BM176: 1 | BV176: Tipo | CD176: Minutas de trabajo | CO176: Las autporidades policiales convcana las reuniones
BV178: Estrategico
BD179: 100 | BV179: Dimensión
BV181: Eficiencia
C186: ACTIVIDAD (5.2) | E186: Asisietncia a las reuniones de Secretarios de Seguridad Pública o equivalente | O186: Asistencia a reuniones de seguridad | Z186: (Total de reuniones de Secretarios de Seguridad Pública o equivalente asistidas/total de reuniones de Secretarios de Seguridad Pública o equivalentes programadas)*100 | AN186: Porcentaje | AV186: Mensual | BD186: 2024 | BM186: 1 | BV186: Tipo | CD186: https://seguridad.guanajuato.gob.mx/compromisos-municipales/ | CO186: las auoridades estatales envian invitación a las reuniones.
BV188: Estrategico
BD189: 100 | BV189: Dimensión
BV191: Eficiencia

Sheet C5 x 50
DX1: 1110 | DY1: Dietas
DX2: 1120 | DY2: Haberes
B3: ANTEPROYECTO DE PRESUPUESTO 2024 | DX3: 1130 | DY3: Sueldo base al personal permanente
DX4: 1140 | DY4: Remuneraciones por adscripción laboral en el extranjero
B5: PARTIDAS-MONTO | I5: GASTO POR MES | DX5: 1210 | DY5: Honorarios asimilables a salarios
B6: FIN | C6: Contribuir a mejorar las capacidades, atenciones y actuación de los elementos de la corporación que permitan generar un ambiente de seguridad en la sociedad | D6: =U424 -> 14446250 | I6: ENE | J6: FEB | K6: MAR | L6: ABR | M6: MAY | N6: JUN | O6: JUL | P6: AGO | Q6: SEP | R6: OCT | S6: NOV | T6: DIC | U6: TOTAL | V6: DIFERENCIA | DX6: 1220 | DY6: Sueldos base al personal eventual
DX7: 1230 | DY7: Retribuciones por servicios de carácter social
B8: PROPOSITO | C8: La Secretaría de Seguridad Pública, Tránsito y Vialidad realiza acciones efectivas de prevención que inhiben conductas antisociales y delictivas | D8: =SUM(U424) -> 14446250 | DX8: 1240 | DY8: Retribución a los representantes de los trabajadores y de los patrones en la Junta de Conciliación y Arbitraje
DX9: 1310 | DY9: Primas por años de servicios efectivos prestados
B10: COMPONENTE 1 | C10: Realizar acciones preventivas mediante operaciones policiales que inhiban las conductas antisociales en la población juvenil del municipio de Dolores Hidalgo, aplicadas | D10: =SUM(F13:F34) -> 4333875 | H10: =SUM(G13) -> 4333875 | DX10: 1320 | DY10: Primas de vacaciones, dominical y gratificación de fin de año
DX11: 1330 | DY11: Horas extraordinarias
DX12: 1340 | DY12: Compensaciones
B13: UR | C13: 31111M120070100 - Secretaría de Seguridad Pública | D13: 2110 | E13: =IF(D13>0,VLOOKUP(D13,$DX$1:$DY$227,2)," ") -> Materiales, útiles y equipos menores de oficina | F13: =+Hoja1!E4 -> 21000 | G13: =SUM(F13:F34) -> 4333875 | I13: =$F13/12 -> 1750 | J13: =$F13/12 -> 1750 | K13: 1750 | L13: 1750 | M13: 1750 | N13: 1750 | O13: 1750 | P13: 1750 | Q13: 1750 | R13: 1750 | S13: 1750 | T13: 1750 | U13: =SUM(I13:T13) -> 21000 | V13: =F13-U13 -> 0 | DX13: 1350 | DY13: Sobrehaberes
D14: 2120 | E14: Materiales y útiles de impresión y reproducción | F14: =+Hoja1!E5 -> 22500 | I14: =$F14/12 -> 1875 | J14: 1875 | K14: 1875 | L14: 1875 | M14: 1875 | N14: 1875 | O14: 1875 | P14: 1875 | Q14: 1875 | R14: 1875 | S14: 1875 | T14: 1875 | U14: 22500 | V14: =F14-U14 -> 0 | DX14: 1360 | DY14: Asignaciones de técnico, de mando, por comisión, de vuelo y de técnico especial
D15: 2150 | E15: Materiales y útiles de impresión y reproducción | F15: =+Hoja1!E6 -> 15000 | I15: 1250 | J15: 1250 | K15: 1250 | L15: 1250 | M15: 1250 | N15: 1250 | O15: 1250 | P15: 1250 | Q15: 1250 | R15: 1250 | S15: 1250 | T15: 1250 | U15: 15000 | V15: 0 | DX15: 1370 | DY15: Honorarios especiales
D16: 2611 | E16: Combustibles, lubricantes y aditivos | F16: =+Hoja1!E7 -> 2340000 | I16: 195000 | J16: 195000 | K16: 195000 | L16: 195000 | M16: 195000 | N16: 195000 | O16: 195000 | P16: 195000 | Q16: 195000 | R16: 195000 | S16: 195000 | T16: 195000 | U16: 2340000 | V16: 0 | DX16: 1380 | DY16: Participaciones por vigilancia en el cumplimiento de las leyes y custodia de valores
D17: 2710 | E17: Vestuario y uniformes | F17: =+Hoja1!E8 -> 315000 | I17: 26250 | J17: 26250 | K17: 26250 | L17: 26250 | M17: 26250 | N17: 26250 | O17: 26250 | P17: 26250 | Q17: 26250 | R17: 26250 | S17: 26250 | T17: 26250 | U17: 315000 | V17: 0 | DX17: 1410 | DY17: Aportaciones de seguridad social
D18: 2930 | E18: Refacciones y accesorios menores de mobiliario y equipo de administración, educacional y recreativo | F18: =+Hoja1!E9 -> 6000 | I18: 500 | J18: 500 | K18: 500 | L18: 500 | M18: 500 | N18: 500 | O18: 500 | P18: 500 | Q18: 500 | R18: 500 | S18: 500 | T18: 500 | U18: 6000 | V18: 0 | DX18: 1420 | DY18: Aportaciones a fondos de vivienda
D19: 2940 | E19: Refacciones y accesorios menores de equipo de cómputo y tecnologías de la información | F19: =+Hoja1!E10 -> 1500 | I19: 125 | J19: 125 | K19: 125 | L19: 125 | M19: 125 | N19: 125 | O19: 125 | P19: 125 | Q19: 125 | R19: 125 | S19: 125 | T19: 125 | U19: 1500 | V19: 0 | DX19: 1430 | DY19: Aportaciones al sistema para el retiro
D20: 2960 | E20: Refacciones y accesorios menores de equipo de transporte | F20: =+Hoja1!E11 -> 675000 | I20: 56250 | J20: 56250 | K20: 56250 | L20: 56250 | M20: 56250 | N20: 56250 | O20: 56250 | P20: 56250 | Q20: 56250 | R20: 56250 | S20: 56250 | T20: 56250 | U20: 675000 | V20: 0 | DX20: 1440 | DY20: Aportaciones para seguros
D21: 3110 | E21: Refacciones y accesorios menores otros bienes muebles | F21: =+Hoja1!E12 -> 104400 | I21: 8700 | J21: 8700 | K21: 8700 | L21: 8700 | M21: 8700 | N21: 8700 | O21: 8700 | P21: 8700 | Q21: 8700 | R21: 8700 | S21: 8700 | T21: 8700 | U21: 104400 | V21: 0 | DX21: 1510 | DY21: Cuotas para el fondo de ahorro y fondo de trabajo
D22: 3140 | E22: Refacciones y accesorios menores otros bienes muebles | F22: =+Hoja1!E13 -> 20475 | I22: 1706.25 | J22: 1706.25 | K22: 1706.25 | L22: 1706.25 | M22: 1706.25 | N22: 1706.25 | O22: 1706.25 | P22: 1706.25 | Q22: 1706.25 | R22: 1706.25 | S22: 1706.25 | T22: 1706.25 | U22: 20475 | V22: 0 | DX22: 1520 | DY22: Indemnizaciones
D23: 3230 | E23: Refacciones y accesorios menores otros bienes muebles | F23: =+Hoja1!E14 -> 10500 | I23: 875 | J23: 875 | K23: 875 | L23: 875 | M23: 875 | N23: 875 | O23: 875 | P23: 875 | Q23: 875 | R23: 875 | S23: 875 | T23: 875 | U23: 10500 | V23: 0 | DX23: 1530 | DY23: Prestaciones y haberes de retiro
D24: 3350 | E24: Refacciones y accesorios menores otros bienes muebles | F24: =+Hoja1!E15 -> 120000 | I24: 10000 | J24: 10000 | K24: 10000 | L24: 10000 | M24: 10000 | N24: 10000 | O24: 10000 | P24: 10000 | Q24: 10000 | R24: 10000 | S24: 10000 | T24: 10000 | U24: 120000 | V24: 0 | DX24: 1540 | DY24: Prestaciones contractuales
D25: 3450 | E25: Seguro de bienes patrimoniales | F25: =+Hoja1!E16 -> 195900 | I25: 16325 | J25: 16325 | K25: 16325 | L25: 16325 | M25: 16325 | N25: 16325 | O25: 16325 | P25: 16325 | Q25: 16325 | R25: 16325 | S25: 16325 | T25: 16325 | U25: 195900 | V25: 0 | DX25: 1550 | DY25: Apoyos a la capacitación de los servidores públicos
D26: 3510 | E26: Conservación y mantenimiento menor de inmuebles | F26: =+Hoja1!E17 -> 9000 | I26: 750 | J26: 750 | K26: 750 | L26: 750 | M26: 750 | N26: 750 | O26: 750 | P26: 750 | Q26: 750 | R26: 750 | S26: 750 | T26: 750 | U26: 9000 | V26: 0 | DX26: 1560 | DY26: Otras prestaciones sociales y económicas
D27: 3530 | E27: Instalación, reparación y mantenimiento de equipo de cómputo y tecnología de la información | F27: =+Hoja1!E18 -> 4500 | I27: 375 | J27: 375 | K27: 375 | L27: 375 | M27: 375 | N27: 375 | O27: 375 | P27: 375 | Q27: 375 | R27: 375 | S27: 375 | T27: 375 | U27: 4500 | V27: 0 | DX27: 1610 | DY27: Previsiones de carácter laboral, económica y de seguridad social
D28: 3550 | E28: Reparación y mantenimiento de equipo de transporte | F28: =+Hoja1!E19 -> 390000 | I28: 32500 | J28: 32500 | K28: 32500 | L28: 32500 | M28: 32500 | N28: 32500 | O28: 32500 | P28: 32500 | Q28: 32500 | R28: 32500 | S28: 32500 | T28: 32500 | U28: 390000 | V28: 0 | DX28: 1710 | DY28: Estímulos
D29: 3560 | E29: Reparación y mantenimiento de equipo de defensa y seguridad | F29: =+Hoja1!E20 -> 6000 | I29: 500 | J29: 500 | K29: 500 | L29: 500 | M29: 500 | N29: 500 | O29: 500 | P29: 500 | Q29: 500 | R29: 500 | S29: 500 | T29: 500 | U29: 6000 | V29: 0 | DX29: 1720 | DY29: Recompensas
D30: 3750 | E30: Viáticos en el país | F30: =+Hoja1!E21 -> 2100 | I30: 175 | J30: 175 | K30: 175 | L30: 175 | M30: 175 | N30: 175 | O30: 175 | P30: 175 | Q30: 175 | R30: 175 | S30: 175 | T30: 175 | U30: 2100 | V30: 0 | DX30: 1810 | DY30: Impuesto sobre nóminas
D31: 3820 | E31: Viáticos en el extranjero | F31: =+Hoja1!E22 -> 36000 | I31: 3000 | J31: 3000 | K31: 3000 | L31: 3000 | M31: 3000 | N31: 3000 | O31: 3000 | P31: 3000 | Q31: 3000 | R31: 3000 | S31: 3000 | T31: 3000 | U31: 36000 | V31: 0 | DX31: 1820 | DY31: Otros impuestos derivados de una relación laboral
D32: 3851 | E32: Viáticos en el extranjero | F32: =+Hoja1!E23 -> 3000 | I32: 250 | J32: 250 | K32: 250 | L32: 250 | M32: 250 | N32: 250 | O32: 250 | P32: 250 | Q32: 250 | R32: 250 | S32: 250 | T32: 250 | U32: 3000 | V32: 0 | DX32: 2110 | DY32: Materiales, útiles y equipos menores de oficina
D33: 3852 | E33: Viáticos en el extranjero | F33: =+Hoja1!E24 -> 36000 | I33: 3000 | J33: 3000 | K33: 3000 | L33: 3000 | M33: 3000 | N33: 3000 | O33: 3000 | P33: 3000 | Q33: 3000 | R33: 3000 | S33: 3000 | T33: 3000 | U33: =SUM(I33:T33) -> 36000 | V33: 0 | DX33: 2120 | DY33: Materiales y útiles de impresión y reproducción
U34: =SUM(I34:T34) -> 0 | V34: 0 | DX34: 2520 | DY34: Fertilizantes, pesticidas y otros agroquímicos
B35: COMPONENTE 2 | C35: Actividades informativas, ludicas, deportivas y de cualquier indole que contribuyan a la participación ciudadana en materia de seguridad pública realizadas | D35: =SUM(F38:F60) -> 4333875 | H35: =SUM(G38) -> 4333875 | U35: =SUM(U13:U34) -> 4333875 | V35: =G13-U35 -> 0 | DX35: 2530 | DY35: Medicinas y productos farmacéuticos
DX36: 2540 | DY36: Materiales, accesorios y suministros médicos
DX37: 2550 | DY37: Materiales, accesorios y suministros de laboratorio
B38: UR | C38: 31111M120070100 - Secretaría de Seguridad Pública | D38: 2110 | E38: =IF(D38>0,VLOOKUP(D38,$DX$1:$DY$227,2)," ") -> Materiales, útiles y equipos menores de oficina | F38: =+Hoja1!E31 -> 21000 | G38: =SUM(F38:F60) -> 4333875 | I38: =$F38/12 -> 1750 | J38: 1750 | K38: 1750 | L38: 1750 | M38: 1750 | N38: 1750 | O38: 1750 | P38: 1750 | Q38: 1750 | R38: 1750 | S38: =$F38/12 -> 1750 | T38: 1750 | U38: =SUM(I38:T38) -> 21000 | V38: =F38-U38 -> 0 | DX38: 2560 | DY38: Fibras sintéticas, hules, plásticos y derivados
D39: 2120 | E39: Materiales y útiles de impresión y reproducción | F39: =+Hoja1!E32 -> 22500 | I39: 1875 | J39: 1875 | K39: 1875 | L39: 1875 | M39: 1875 | N39: 1875 | O39: 1875 | P39: 1875 | Q39: 1875 | R39: 1875 | S39: 1875 | T39: 1875 | U39: 22500 | V39: =F39-U39 -> 0 | DX39: 2590 | DY39: Otros productos químicos
D40: 2150 | E40: Materiales y útiles de impresión y reproducción | F40: =+Hoja1!E33 -> 15000 | I40: 1250 | J40: 1250 | K40: 1250 | L40: 1250 | M40: 1250 | N40: 1250 | O40: 1250 | P40: 1250 | Q40: 1250 | R40: 1250 | S40: 1250 | T40: 1250 | U40: 15000 | V40: 0 | DX40: 2610 | DY40: Combustibles, lubricantes y aditivos
D41: 2611 | E41: Combustibles, lubricantes y aditivos | F41: =+Hoja1!E34 -> 2340000 | I41: 195000 | J41: 195000 | K41: 195000 | L41: 195000 | M41: 195000 | N41: 195000 | O41: 195000 | P41: 195000 | Q41: 195000 | R41: 195000 | S41: 195000 | T41: 195000 | U41: 2340000 | V41: 0 | DX41: 2620 | DY41: Carbón y sus derivados
D42: 2710 | E42: Vestuario y uniformes | F42: =+Hoja1!E35 -> 315000 | I42: 26250 | J42: 26250 | K42: 26250 | L42: 26250 | M42: 26250 | N42: 26250 | O42: 26250 | P42: 26250 | Q42: 26250 | R42: 26250 | S42: 26250 | T42: 26250 | U42: 315000 | V42: 0 | DX42: 2710 | DY42: Vestuario y uniformes
D43: 2930 | E43: Refacciones y accesorios menores de mobiliario y equipo de administración, educacional y recreativo | F43: =+Hoja1!E36 -> 6000 | I43: 500 | J43: 500 | K43: 500 | L43: 500 | M43: 500 | N43: 500 | O43: 500 | P43: 500 | Q43: 500 | R43: 500 | S43: 500 | T43: 500 | U43: 6000 | V43: 0 | DX43: 2720 | DY43: Prendas de seguridad y protección personal
D44: 2940 | E44: Refacciones y accesorios menores de equipo de cómputo y tecnologías de la información | F44: =+Hoja1!E37 -> 1500 | I44: 125 | J44: 125 | K44: 125 | L44: 125 | M44: 125 | N44: 125 | O44: 125 | P44: 125 | Q44: 125 | R44: 125 | S44: 125 | T44: 125 | U44: 1500 | V44: 0 | DX44: 2730 | DY44: Artículos deportivos
D45: 2960 | E45: Refacciones y accesorios menores de equipo de transporte | F45: =+Hoja1!E38 -> 675000 | I45: 56250 | J45: 56250 | K45: 56250 | L45: 56250 | M45: 56250 | N45: 56250 | O45: 56250 | P45: 56250 | Q45: 56250 | R45: 56250 | S45: 56250 | T45: 56250 | U45: 675000 | V45: 0 | DX45: 2740 | DY45: Productos textiles
D46: 3110 | E46: Refacciones y accesorios menores otros bienes muebles | F46: =+Hoja1!E39 -> 104400 | I46: 8700 | J46: 8700 | K46: 8700 | L46: 8700 | M46: 8700 | N46: 8700 | O46: 8700 | P46: 8700 | Q46: 8700 | R46: 8700 | S46: 8700 | T46: 8700 | U46: 104400 | V46: 0 | DX46: 2750 | DY46: Blancos y otros productos textiles, excepto prendas de vestir
D47: 3140 | E47: Refacciones y accesorios menores otros bienes muebles | F47: =+Hoja1!E40 -> 20475 | I47: 1706.25 | J47: 1706.25 | K47: 1706.25 | L47: 1706.25 | M47: 1706.25 | N47: 1706.25 | O47: 1706.25 | P47: 1706.25 | Q47: 1706.25 | R47: 1706.25 | S47: 1706.25 | T47: 1706.25 | U47: 20475 | V47: 0 | DX47: 2810 | DY47: Sustancias y materiales explosivos
D48: 3230 | E48: Refacciones y accesorios menores otros bienes muebles | F48: =+Hoja1!E41 -> 10500 | I48: 875 | J48: 875 | K48: 875 | L48: 875 | M48: 875 | N48: 875 | O48: 875 | P48: 875 | Q48: 875 | R48: 875 | S48: 875 | T48: 875 | U48: 10500 | V48: 0 | DX48: 2820 | DY48: Materiales de seguridad pública
D49: 3350 | E49: Refacciones y accesorios menores otros bienes muebles | F49: =+Hoja1!E42 -> 120000 | I49: 10000 | J49: 10000 | K49: 10000 | L49: 10000 | M49: 10000 | N49: 10000 | O49: 10000 | P49: 10000 | Q49: 10000 | R49: 10000 | S49: 10000 | T49: 10000 | U49: 120000 | V49: 0 | DX49: 2830 | DY49: Prendas de protección para seguridad pública y nacional
D50: 3450 | E50: Seguro de bienes patrimoniales | F50: =+Hoja1!E43 -> 195900 | I50: 16325 | J50: 16325 | K50: 16325 | L50: 16325 | M50: 16325 | N50: 16325 | O50: 16325 | P50: 16325 | Q50: 16325 | R50: 16325 | S50: 16325 | T50: 16325 | U50: 195900 | V50: 0 | DX50: 2910 | DY50: Herramientas menores
D51: 3510 | E51: Conservación y mantenimiento menor de inmuebles | F51: =+Hoja1!E44 -> 9000 | I51: 750 | J51: 750 | K51: 750 | L51: 750 | M51: 750 | N51: 750 | O51: 750 | P51: 750 | Q51: 750 | R51: 750 | S51: 750 | T51: 750 | U51: 9000 | V51: 0 | DX51: 2920 | DY51: Refacciones y accesorios menores de edificios
D52: 3530 | E52: Instalación, reparación y mantenimiento de equipo de cómputo y tecnología de la información | F52: =+Hoja1!E45 -> 4500 | I52: 375 | J52: 375 | K52: 375 | L52: 375 | M52: 375 | N52: 375 | O52: 375 | P52: 375 | Q52: 375 | R52: 375 | S52: 375 | T52: 375 | U52: 4500 | V52: 0 | DX52: 2930 | DY52: Refacciones y accesorios menores de mobiliario y equipo de administración, educacional y recreativo
D53: 3550 | E53: Reparación y mantenimiento de equipo de transporte | F53: =+Hoja1!E46 -> 390000 | I53: 32500 | J53: 32500 | K53: 32500 | L53: 32500 | M53: 32500 | N53: 32500 | O53: 32500 | P53: 32500 | Q53: 32500 | R53: 32500 | S53: 32500 | T53: 32500 | U53: 390000 | V53: 0 | DX53: 2940 | DY53: Refacciones y accesorios menores de equipo de cómputo y tecnologías de la información
D54: 3560 | E54: Reparación y mantenimiento de equipo de defensa y seguridad | F54: =+Hoja1!E47 -> 6000 | I54: 500 | J54: 500 | K54: 500 | L54: 500 | M54: 500 | N54: 500 | O54: 500 | P54: 500 | Q54: 500 | R54: 500 | S54: 500 | T54: 500 | U54: 6000 | V54: 0 | DX54: 2950 | DY54: Refacciones y accesorios menores de equipo e instrumental médico y de laboratorio
D55: 3750 | E55: Viáticos en el país | F55: =+Hoja1!E48 -> 2100 | I55: 175 | J55: 175 | K55: 175 | L55: 175 | M55: 175 | N55: 175 | O55: 175 | P55: 175 | Q55: 175 | R55: 175 | S55: 175 | T55: 175 | U55: 2100 | V55: 0 | DX55: 2960 | DY55: Refacciones y accesorios menores de equipo de transporte
D56: 3820 | E56: Viáticos en el extranjero | F56: =+Hoja1!E49 -> 36000 | I56: 3000 | J56: 3000 | K56: 3000 | L56: 3000 | M56: 3000 | N56: 3000 | O56: 3000 | P56: 3000 | Q56: 3000 | R56: 3000 | S56: 3000 | T56: 3000 | U56: 36000 | V56: 0 | DX56: 2970 | DY56: Refacciones y accesorios menores de equipo de defensa y seguridad
D57: 3851 | E57: Viáticos en el extranjero | F57: =+Hoja1!E50 -> 3000 | I57: 250 | J57: 250 | K57: 250 | L57: 250 | M57: 250 | N57: 250 | O57: 250 | P57: 250 | Q57: 250 | R57: 250 | S57: 250 | T57: 250 | U57: 3000 | V57: 0 | DX57: 2980 | DY57: Refacciones y accesorios menores de maquinaria y otros equipos
D58: 3852 | E58: Viáticos en el extranjero | F58: =+Hoja1!E51 -> 36000 | I58: 3000 | J58: 3000 | K58: 3000 | L58: 3000 | M58: 3000 | N58: 3000 | O58: 3000 | P58: 3000 | Q58: 3000 | R58: 3000 | S58: 3000 | T58: 3000 | U58: =SUM(I58:T58) -> 36000 | V58: 0 | DX58: 2990 | DY58: Refacciones y accesorios menores otros bienes muebles
U59: =SUM(I59:T59) -> 0 | V59: 0 | DX59: 3410 | DY59: Servicios financieros y bancarios
U60: 0 | V60: 0 | DX60: 3420 | DY60: Servicios de cobranza, investigación crediticia y similar
B61: COMPONENTE 3 | C61: Información importante para la aplicación de acciones de seguridad encaminada a la disminución de actos que vulneran la seguridad en el municipio de Dolores | D61: =SUM(F64:F92) -> 2889250 | H61: =SUM(G64) -> 2889250 | U61: =SUM(U38:U60) -> 4333875 | V61: =G38-U61 -> 0 | DX61: 3430 | DY61: Servicios de recaudación, traslado y custodia de valores
DX62: 3440 | DY62: Seguros de responsabilidad patrimonial y fianzas
DX63: 3450 | DY63: Seguro de bienes patrimoniales
B64: UR | C64: 31111M120070100 - Secretaría de Seguridad Pública | D64: 2110 | E64: =IF(D64>0,VLOOKUP(D64,$DX$1:$DY$227,2)," ") -> Materiales, útiles y equipos menores de oficina | F64: =+Hoja1!E58 -> 14000 | G64: =SUM(F64:F92) -> 2889250 | I64: =$F64/12 -> 1166.666667 | J64: 1166.666667 | K64: 1166.666667 | L64: 1166.666667 | M64: 1166.666667 | N64: 1166.666667 | O64: 1166.666667 | P64: 1166.666667 | Q64: 1166.666667 | R64: 1166.666667 | S64: 1166.666667 | T64: 1166.666667 | U64: =SUM(I64:T64) -> 14000 | V64: =F64-U64 -> 0 | DX64: 3460 | DY64: Almacenaje, envase y embalaje
D65: 2120 | E65: Materiales y útiles de impresión y reproducción | F65: =+Hoja1!E59 -> 15000 | I65: 1250 | J65: 1250 | K65: 1250 | L65: 1250 | M65: 1250 | N65: 1250 | O65: 1250 | P65: 1250 | Q65: 1250 | R65: 1250 | S65: 1250 | T65: 1250 | U65: 15000 | V65: =F65-U65 -> 0 | DX65: 3470 | DY65: Fletes y maniobras
D66: 2150 | E66: Materiales y útiles de impresión y reproducción | F66: =+Hoja1!E60 -> 10000 | I66: 833.3333333 | J66: 833.3333333 | K66: 833.3333333 | L66: 833.3333333 | M66: 833.3333333 | N66: 833.3333333 | O66: 833.3333333 | P66: 833.3333333 | Q66: 833.3333333 | R66: 833.3333333 | S66: 833.3333333 | T66: 833.3333333 | U66: 10000 | V66: 0 | DX66: 3480 | DY66: Comisiones por ventas
D67: 2611 | E67: Combustibles, lubricantes y aditivos | F67: =+Hoja1!E61 -> 1560000 | I67: 130000 | J67: 130000 | K67: 130000 | L67: 130000 | M67: 130000 | N67: 130000 | O67: 130000 | P67: 130000 | Q67: 130000 | R67: 130000 | S67: 130000 | T67: 130000 | U67: 1560000 | V67: 0 | DX67: 3490 | DY67: Servicios financieros, bancarios y comerciales integrales
D68: 2710 | E68: Vestuario y uniformes | F68: =+Hoja1!E62 -> 210000 | I68: 17500 | J68: 17500 | K68: 17500 | L68: 17500 | M68: 17500 | N68: 17500 | O68: 17500 | P68: 17500 | Q68: 17500 | R68: 17500 | S68: 17500 | T68: 17500 | U68: 210000 | V68: 0 | DX68: 3510 | DY68: Conservación y mantenimiento menor de inmuebles
D69: 2930 | E69: Refacciones y accesorios menores de mobiliario y equipo de administración, educacional y recreativo | F69: =+Hoja1!E63 -> 4000 | I69: 333.3333333 | J69: 333.3333333 | K69: 333.3333333 | L69: 333.3333333 | M69: 333.3333333 | N69: 333.3333333 | O69: 333.3333333 | P69: 333.3333333 | Q69: 333.3333333 | R69: 333.3333333 | S69: 333.3333333 | T69: 333.3333333 | U69: 4000 | V69: 0 | DX69: 3520 | DY69: Instalación, reparación y mantenimiento de mobiliario y equipo de administración, educacional y recreativo
D70: 2940 | E70: Refacciones y accesorios menores de equipo de cómputo y tecnologías de la información | F70: =+Hoja1!E64 -> 1000 | I70: 83.33333333 | J70: 83.33333333 | K70: 83.33333333 | L70: 83.33333333 | M70: 83.33333333 | N70: 83.33333333 | O70: 83.33333333 | P70: 83.33333333 | Q70: 83.33333333 | R70: 83.33333333 | S70: 83.33333333 | T70: 83.33333333 | U70: 1000 | V70: 0 | DX70: 3530 | DY70: Instalación, reparación y mantenimiento de equipo de cómputo y tecnología de la información
D71: 2960 | E71: Refacciones y accesorios menores de equipo de transporte | F71: =+Hoja1!E65 -> 450000 | I71: 37500 | J71: 37500 | K71: 37500 | L71: 37500 | M71: 37500 | N71: 37500 | O71: 37500 | P71: 37500 | Q71: 37500 | R71: 37500 | S71: 37500 | T71: 37500 | U71: 450000 | V71: 0 | DX71: 3540 | DY71: Instalación, reparación y mantenimiento de equipo e instrumental médico y de laboratorio
D72: 3110 | E72: Refacciones y accesorios menores otros bienes muebles | F72: =+Hoja1!E66 -> 69600 | I72: 5800 | J72: 5800 | K72: 5800 | L72: 5800 | M72: 5800 | N72: 5800 | O72: 5800 | P72: 5800 | Q72: 5800 | R72: 5800 | S72: 5800 | T72: 5800 | U72: 69600 | V72: 0 | DX72: 3550 | DY72: Reparación y mantenimiento de equipo de transporte
D73: 3140 | E73: Refacciones y accesorios menores otros bienes muebles | F73: =+Hoja1!E67 -> 13650 | I73: 1137.5 | J73: 1137.5 | K73: 1137.5 | L73: 1137.5 | M73: 1137.5 | N73: 1137.5 | O73: 1137.5 | P73: 1137.5 | Q73: 1137.5 | R73: 1137.5 | S73: 1137.5 | T73: 1137.5 | U73: 13650 | V73: 0 | DX73: 3560 | DY73: Reparación y mantenimiento de equipo de defensa y seguridad
D74: 3230 | E74: Refacciones y accesorios menores otros bienes muebles | F74: =+Hoja1!E68 -> 7000 | I74: 583.3333333 | J74: 583.3333333 | K74: 583.3333333 | L74: 583.3333333 | M74: 583.3333333 | N74: 583.3333333 | O74: 583.3333333 | P74: 583.3333333 | Q74: 583.3333333 | R74: 583.3333333 | S74: 583.3333333 | T74: 583.3333333 | U74: 7000 | V74: 0 | DX74: 3570 | DY74: Instalación, reparación y mantenimiento de maquinaria, otros equipos y herramienta
D75: 3350 | E75: Refacciones y accesorios menores otros bienes muebles | F75: =+Hoja1!E69 -> 80000 | I75: 6666.666667 | J75: 6666.666667 | K75: 6666.666667 | L75: 6666.666667 | M75: 6666.666667 | N75: 6666.666667 | O75: 6666.666667 | P75: 6666.666667 | Q75: 6666.666667 | R75: 6666.666667 | S75: 6666.666667 | T75: 6666.666667 | U75: 80000 | V75: 0 | DX75: 3580 | DY75: Servicios de limpieza y manejo de desechos
D76: 3450 | E76: Seguro de bienes patrimoniales | F76: =+Hoja1!E70 -> 130600 | I76: 10883.33333 | J76: 10883.33333 | K76: 10883.33333 | L76: 10883.33333 | M76: 10883.33333 | N76: 10883.33333 | O76: 10883.33333 | P76: 10883.33333 | Q76: 10883.33333 | R76: 10883.33333 | S76: 10883.33333 | T76: 10883.33333 | U76: 130600 | V76: 0 | DX76: 3590 | DY76: Servicios de jardinería y fumigación
D77: 3510 | E77: Conservación y mantenimiento menor de inmuebles | F77: =+Hoja1!E71 -> 6000 | I77: 500 | J77: 500 | K77: 500 | L77: 500 | M77: 500 | N77: 500 | O77: 500 | P77: 500 | Q77: 500 | R77: 500 | S77: 500 | T77: 500 | U77: 6000 | V77: 0 | DX77: 3610 | DY77: Difusión por radio, televisión y otros medios de mensajes sobre programas y actividades gubernamentales
D78: 3530 | E78: Instalación, reparación y mantenimiento de equipo de cómputo y tecnología de la información | F78: =+Hoja1!E72 -> 3000 | I78: 250 | J78: 250 | K78: 250 | L78: 250 | M78: 250 | N78: 250 | O78: 250 | P78: 250 | Q78: 250 | R78: 250 | S78: 250 | T78: 250 | U78: 3000 | V78: 0 | DX78: 3620 | DY78: Difusión por radio, televisión y otros medios de mensajes comerciales para promover la venta de bienes o servicios
D79: 3550 | E79: Reparación y mantenimiento de equipo de transporte | F79: =+Hoja1!E73 -> 260000 | I79: 21666.66667 | J79: 21666.66667 | K79: 21666.66667 | L79: 21666.66667 | M79: 21666.66667 | N79: 21666.66667 | O79: 21666.66667 | P79: 21666.66667 | Q79: 21666.66667 | R79: 21666.66667 | S79: 21666.66667 | T79: 21666.66667 | U79: 260000 | V79: 0 | DX79: 3630 | DY79: Servicios de creatividad, preproducción y producción de publicidad, excepto Internet
D80: 3560 | E80: Reparación y mantenimiento de equipo de defensa y seguridad | F80: =+Hoja1!E74 -> 4000 | I80: 333.3333333 | J80: 333.3333333 | K80: 333.3333333 | L80: 333.3333333 | M80: 333.3333333 | N80: 333.3333333 | O80: 333.3333333 | P80: 333.3333333 | Q80: 333.3333333 | R80: 333.3333333 | S80: 333.3333333 | T80: 333.3333333 | U80: 4000 | V80: 0 | DX80: 3640 | DY80: Servicios de revelado de fotografías
D81: 3750 | E81: Viáticos en el país | F81: =+Hoja1!E75 -> 1400 | I81: 116.6666667 | J81: 116.6666667 | K81: 116.6666667 | L81: 116.6666667 | M81: 116.6666667 | N81: 116.6666667 | O81: 116.6666667 | P81: 116.6666667 | Q81: 116.6666667 | R81: 116.6666667 | S81: 116.6666667 | T81: 116.6666667 | U81: 1400 | V81: 0 | DX81: 3650 | DY81: Servicios de la industria fílmica, del sonido y del video
D82: 3820 | E82: Viáticos en el extranjero | F82: =+Hoja1!E76 -> 24000 | I82: 2000 | J82: 2000 | K82: 2000 | L82: 2000 | M82: 2000 | N82: 2000 | O82: 2000 | P82: 2000 | Q82: 2000 | R82: 2000 | S82: 2000 | T82: 2000 | U82: 24000 | V82: 0 | DX82: 3660 | DY82: Servicio de creación y difusión de contenido exclusivamente a través de Internet
D83: 3851 | E83: Viáticos en el extranjero | F83: =+Hoja1!E77 -> 2000 | I83: 166.6666667 | J83: 166.6666667 | K83: 166.6666667 | L83: 166.6666667 | M83: 166.6666667 | N83: 166.6666667 | O83: 166.6666667 | P83: 166.6666667 | Q83: 166.6666667 | R83: 166.6666667 | S83: 166.6666667 | T83: 166.6666667 | U83: 2000 | V83: 0 | DX83: 3690 | DY83: Otros servicios de información
D84: 3852 | E84: Viáticos en el extranjero | F84: =+Hoja1!E78 -> 24000 | I84: 2000 | J84: 2000 | K84: 2000 | L84: 2000 | M84: 2000 | N84: 2000 | O84: 2000 | P84: 2000 | Q84: 2000 | R84: 2000 | S84: =$F84/12 -> 2000 | T84: 2000 | U84: =SUM(I84:T84) -> 24000 | V84: 0 | DX84: 3710 | DY84: Pasajes aéreos
F85: =+Hoja1!E79 -> 0 | I85: 0 | J85: 0 | K85: 0 | L85: 0 | M85: 0 | N85: 0 | O85: 0 | P85: 0 | Q85: 0 | R85: 0 | S85: 0 | T85: 0 | U85: =SUM(I85:T85) -> 0 | V85: 0 | DX85: 3720 | DY85: Pasajes terrestres
F86: =+Hoja1!E80 -> 0 | I86: 0 | J86: 0 | K86: 0 | L86: 0 | M86: 0 | N86: 0 | O86: 0 | P86: 0 | Q86: 0 | R86: 0 | S86: 0 | T86: 0 | U86: 0 | V86: 0 | DX86: 3730 | DY86: Pasajes marítimos, lacustres y fluviales
F87: =+Hoja1!E81 -> 0 | I87: 0 | J87: 0 | K87: 0 | L87: 0 | M87: 0 | N87: 0 | O87: 0 | P87: 0 | Q87: 0 | R87: 0 | S87: 0 | T87: 0 | U87: 0 | V87: 0 | DX87: 3740 | DY87: Autotransporte
F88: =+Hoja1!E82 -> 0 | I88: 0 | J88: 0 | K88: 0 | L88: 0 | M88: 0 | N88: 0 | O88: 0 | P88: 0 | Q88: 0 | R88: 0 | S88: 0 | T88: 0 | U88: 0 | V88: 0 | DX88: 3750 | DY88: Viáticos en el país
F89: =+Hoja1!E83 -> 0 | I89: 0 | J89: 0 | K89: 0 | L89: 0 | M89: 0 | N89: 0 | O89: 0 | P89: 0 | Q89: 0 | R89: 0 | S89: 0 | T89: 0 | U89: 0 | V89: 0 | DX89: 3760 | DY89: Viáticos en el extranjero
U90: =SUM(I90:T90) -> 0 | V90: 0 | DX90: 4170 | DY90: Transferencias internas otorgadas a fideicomisos públicos empresariales y no financieros
U91: 0 | V91: 0 | DX91: 4180 | DY91: Transferencias internas otorgadas a instituciones paraestatales públicas financieras
U92: 0 | V92: 0 | DX92: 4190 | DY92: Transferencias internas otorgadas a fideicomisos públicos financieros
B93: COMPONENTE 4 | C93: Gasto de recursos de manera responsable aplicados | D93: =SUM(F96:F124) -> 1444625 | H93: =SUM(G96) -> 1444625 | U93: =SUM(U64:U92) -> 2889250 | V93: =G64-U93 -> 0 | DX93: 4210 | DY93: Transferencias otorgadas a entidades paraestatales no empresariales y no financieras
DX94: 4220 | DY94: Transferencias otorgadas para entidades paraestatales empresariales y no financieras
DX95: 4230 | DY95: Transferencias otorgadas para instituciones paraestatales públicas financieras
B96: UR | C96: 31111M120070100 - Secretaría de Seguridad Pública | D96: 2110 | E96: =IF(D96>0,VLOOKUP(D96,$DX$1:$DY$227,2)," ") -> Materiales, útiles y equipos menores de oficina | F96: =+Hoja1!E85 -> 7000 | G96: =SUM(F96:F124) -> 1444625 | I96: =$F96/12 -> 583.3333333 | J96: 583.3333333 | K96: 583.3333333 | L96: 583.3333333 | M96: 583.3333333 | N96: 583.3333333 | O96: 583.3333333 | P96: 583.3333333 | Q96: 583.3333333 | R96: 583.3333333 | S96: 583.3333333 | T96: 583.3333333 | U96: =SUM(I96:T96) -> 7000 | V96: =F96-U96 -> 0 | DX96: 4240 | DY96: Transferencias otorgadas a entidades federativas y municipios
D97: 2120 | E97: Materiales y útiles de impresión y reproducción | F97: =+Hoja1!E86 -> 7500 | I97: 625 | J97: 625 | K97: 625 | L97: 625 | M97: 625 | N97: 625 | O97: 625 | P97: 625 | Q97: 625 | R97: 625 | S97: 625 | T97: 625 | U97: 7500 | V97: =F97-U97 -> 0 | DX97: 4250 | DY97: Transferencias a fideicomisos de entidades federativas y municipios
D98: 2150 | E98: Materiales y útiles de impresión y reproducción | F98: =+Hoja1!E87 -> 5000 | I98: 416.6666667 | J98: 416.6666667 | K98: 416.6666667 | L98: 416.6666667 | M98: 416.6666667 | N98: 416.6666667 | O98: 416.6666667 | P98: 416.6666667 | Q98: 416.6666667 | R98: 416.6666667 | S98: 416.6666667 | T98: 416.6666667 | U98: 5000 | V98: 0 | DX98: 4310 | DY98: Subsidios a la producción
D99: 2611 | E99: Combustibles, lubricantes y aditivos | F99: =+Hoja1!E88 -> 780000 | I99: 65000 | J99: 65000 | K99: 65000 | L99: 65000 | M99: 65000 | N99: 65000 | O99: 65000 | P99: 65000 | Q99: 65000 | R99: 65000 | S99: 65000 | T99: 65000 | U99: 780000 | V99: 0 | DX99: 4320 | DY99: Subsidios a la distribución
D100: 2710 | E100: Vestuario y uniformes | F100: =+Hoja1!E89 -> 105000 | I100: 8750 | J100: 8750 | K100: 8750 | L100: 8750 | M100: 8750 | N100: 8750 | O100: 8750 | P100: 8750 | Q100: 8750 | R100: 8750 | S100: 8750 | T100: 8750 | U100: 105000 | V100: 0 | DX100: 4330 | DY100: Subsidios a la inversión
D101: 2930 | E101: Refacciones y accesorios menores de mobiliario y equipo de administración, educacional y recreativo | F101: =+Hoja1!E90 -> 2000 | I101: 166.6666667 | J101: 166.6666667 | K101: 166.6666667 | L101: 166.6666667 | M101: 166.6666667 | N101: 166.6666667 | O101: 166.6666667 | P101: 166.6666667 | Q101: 166.6666667 | R101: 166.6666667 | S101: 166.6666667 | T101: 166.6666667 | U101: 2000 | V101: 0 | DX101: 4340 | DY101: Subsidios a la prestación de servicios públicos
D102: 2940 | E102: Refacciones y accesorios menores de equipo de cómputo y tecnologías de la información | F102: =+Hoja1!E91 -> 500 | I102: 41.66666667 | J102: 41.66666667 | K102: 41.66666667 | L102: 41.66666667 | M102: 41.66666667 | N102: 41.66666667 | O102: 41.66666667 | P102: 41.66666667 | Q102: 41.66666667 | R102: 41.66666667 | S102: 41.66666667 | T102: 41.66666667 | U102: 500 | V102: 0 | DX102: 4350 | DY102: Subsidios para cubrir diferenciales de tasas de interés
D103: 2960 | E103: Refacciones y accesorios menores de equipo de transporte | F103: =+Hoja1!E92 -> 225000 | I103: 18750 | J103: 18750 | K103: 18750 | L103: 18750 | M103: 18750 | N103: 18750 | O103: 18750 | P103: 18750 | Q103: 18750 | R103: 18750 | S103: 18750 | T103: 18750 | U103: 225000 | V103: 0 | DX103: 4360 | DY103: Subsidios a la vivienda
D104: 3110 | E104: Refacciones y accesorios menores otros bienes muebles | F104: =+Hoja1!E93 -> 34800 | I104: 2900 | J104: 2900 | K104: 2900 | L104: 2900 | M104: 2900 | N104: 2900 | O104: 2900 | P104: 2900 | Q104: 2900 | R104: 2900 | S104: 2900 | T104: 2900 | U104: 34800 | V104: 0 | DX104: 4370 | DY104: Subvenciones al consumo
D105: 3140 | E105: Refacciones y accesorios menores otros bienes muebles | F105: =+Hoja1!E94 -> 6825 | I105: 568.75 | J105: 568.75 | K105: 568.75 | L105: 568.75 | M105: 568.75 | N105: 568.75 | O105: 568.75 | P105: 568.75 | Q105: 568.75 | R105: 568.75 | S105: 568.75 | T105: 568.75 | U105: 6825 | V105: 0 | DX105: 4410 | DY105: Ayudas sociales a personas
D106: 3230 | E106: Refacciones y accesorios menores otros bienes muebles | F106: =+Hoja1!E95 -> 3500 | I106: 291.6666667 | J106: 291.6666667 | K106: 291.6666667 | L106: 291.6666667 | M106: 291.6666667 | N106: 291.6666667 | O106: 291.6666667 | P106: 291.6666667 | Q106: 291.6666667 | R106: 291.6666667 | S106: 291.6666667 | T106: 291.6666667 | U106: 3500 | V106: 0 | DX106: 4420 | DY106: Becas y otras ayudas para programas de capacitación
D107: 3350 | E107: Refacciones y accesorios menores otros bienes muebles | F107: =+Hoja1!E96 -> 40000 | I107: 3333.333333 | J107: 3333.333333 | K107: 3333.333333 | L107: 3333.333333 | M107: 3333.333333 | N107: 3333.333333 | O107: 3333.333333 | P107: 3333.333333 | Q107: 3333.333333 | R107: 3333.333333 | S107: 3333.333333 | T107: 3333.333333 | U107: 40000 | V107: 0 | DX107: 4430 | DY107: Ayudas sociales a instituciones de enseñanza
D108: 3450 | E108: Seguro de bienes patrimoniales | F108: =+Hoja1!E97 -> 65300 | I108: 5441.666667 | J108: 5441.666667 | K108: 5441.666667 | L108: 5441.666667 | M108: 5441.666667 | N108: 5441.666667 | O108: 5441.666667 | P108: 5441.666667 | Q108: 5441.666667 | R108: 5441.666667 | S108: 5441.666667 | T108: 5441.666667 | U108: 65300 | V108: 0 | DX108: 4440 | DY108: Ayudas sociales a actividades científicas o académicas
D109: 3510 | E109: Conservación y mantenimiento menor de inmuebles | F109: =+Hoja1!E98 -> 3000 | I109: 250 | J109: 250 | K109: 250 | L109: 250 | M109: 250 | N109: 250 | O109: 250 | P109: 250 | Q109: 250 | R109: 250 | S109: 250 | T109: 250 | U109: 3000 | V109: 0 | DX109: 4450 | DY109: Ayudas sociales a instituciones sin fines de lucro
D110: 3530 | E110: Instalación, reparación y mantenimiento de equipo de cómputo y tecnología de la información | F110: =+Hoja1!E99 -> 1500 | I110: 125 | J110: 125 | K110: 125 | L110: 125 | M110: 125 | N110: 125 | O110: 125 | P110: 125 | Q110: 125 | R110: 125 | S110: 125 | T110: 125 | U110: 1500 | V110: 0 | DX110: 4460 | DY110: Ayudas sociales a cooperativas
D111: 3550 | E111: Reparación y mantenimiento de equipo de transporte | F111: =+Hoja1!E100 -> 130000 | I111: 10833.33333 | J111: 10833.33333 | K111: 10833.33333 | L111: 10833.33333 | M111: 10833.33333 | N111: 10833.33333 | O111: 10833.33333 | P111: 10833.33333 | Q111: 10833.33333 | R111: 10833.33333 | S111: 10833.33333 | T111: 10833.33333 | U111: 130000 | V111: 0 | DX111: 4470 | DY111: Ayudas sociales a entidades de interés público
D112: 3560 | E112: Reparación y mantenimiento de equipo de defensa y seguridad | F112: =+Hoja1!E101 -> 2000 | I112: 166.6666667 | J112: 166.6666667 | K112: 166.6666667 | L112: 166.6666667 | M112: 166.6666667 | N112: 166.6666667 | O112: 166.6666667 | P112: 166.6666667 | Q112: 166.6666667 | R112: 166.6666667 | S112: 166.6666667 | T112: 166.6666667 | U112: 2000 | V112: 0 | DX112: 4480 | DY112: Ayudas por desastres naturales y otros siniestros
D113: 3750 | E113: Viáticos en el país | F113: =+Hoja1!E102 -> 700 | I113: 58.33333333 | J113: 58.33333333 | K113: 58.33333333 | L113: 58.33333333 | M113: 58.33333333 | N113: 58.33333333 | O113: 58.33333333 | P113: 58.33333333 | Q113: 58.33333333 | R113: 58.33333333 | S113: 58.33333333 | T113: 58.33333333 | U113: 700 | V113: 0 | DX113: 4510 | DY113: Pensiones
D114: 3820 | E114: Viáticos en el extranjero | F114: =+Hoja1!E103 -> 12000 | I114: 1000 | J114: 1000 | K114: 1000 | L114: 1000 | M114: 1000 | N114: 1000 | O114: 1000 | P114: 1000 | Q114: 1000 | R114: 1000 | S114: 1000 | T114: 1000 | U114: 12000 | V114: 0 | DX114: 4520 | DY114: Jubilaciones
D115: 3851 | E115: Viáticos en el extranjero | F115: =+Hoja1!E104 -> 1000 | I115: 83.33333333 | J115: 83.33333333 | K115: 83.33333333 | L115: 83.33333333 | M115: 83.33333333 | N115: 83.33333333 | O115: 83.33333333 | P115: 83.33333333 | Q115: 83.33333333 | R115: 83.33333333 | S115: 83.33333333 | T115: 83.33333333 | U115: 1000 | V115: 0 | DX115: 4610 | DY115: Transferencias a fideicomisos del Poder Ejecutivo
D116: 3852 | E116: Viáticos en el extranjero | F116: =+Hoja1!E105 -> 12000 | I116: 1000 | J116: 1000 | K116: 1000 | L116: 1000 | M116: 1000 | N116: 1000 | O116: 1000 | P116: 1000 | Q116: 1000 | R116: 1000 | S116: =$F116/12 -> 1000 | T116: 1000 | U116: =SUM(I116:T116) -> 12000 | V116: 0 | DX116: 4620 | DY116: Transferencias a fideicomisos del Poder Legislativo
F117: =+Hoja1!E106 -> 0 | I117: 0 | J117: 0 | K117: 0 | L117: 0 | M117: 0 | N117: 0 | O117: 0 | P117: 0 | Q117: 0 | R117: 0 | S117: 0 | T117: 0 | U117: =SUM(I117:T117) -> 0 | V117: 0 | DX117: 4630 | DY117: Transferencias a fideicomisos del Poder Judicial
F118: =+Hoja1!E107 -> 0 | I118: 0 | J118: 0 | K118: 0 | L118: 0 | M118: 0 | N118: 0 | O118: 0 | P118: 0 | Q118: 0 | R118: 0 | S118: 0 | T118: 0 | U118: 0 | V118: 0 | DX118: 4640 | DY118: Transferencias a fideicomisos públicos de entidades paraestatales no empresariales y no financieras
F119: =+Hoja1!E108 -> 0 | I119: 0 | J119: 0 | K119: 0 | L119: 0 | M119: 0 | N119: 0 | O119: 0 | P119: 0 | Q119: 0 | R119: 0 | S119: 0 | T119: 0 | U119: 0 | V119: 0 | DX119: 4650 | DY119: Transferencias a fideicomisos públicos de entidades paraestatales empresariales y no financieras
F120: =+Hoja1!E109 -> 0 | I120: 0 | J120: 0 | K120: 0 | L120: 0 | M120: 0 | N120: 0 | O120: 0 | P120: 0 | Q120: 0 | R120: 0 | S120: 0 | T120: 0 | U120: 0 | V120: 0 | DX120: 4660 | DY120: Transferencias a fideicomisos de instituciones públicas financieras
F121: =+Hoja1!E110 -> 0 | I121: 0 | J121: 0 | K121: 0 | L121: 0 | M121: 0 | N121: 0 | O121: 0 | P121: 0 | Q121: 0 | R121: 0 | S121: 0 | T121: 0 | U121: 0 | V121: 0 | DX121: 4910 | DY121: Transferencias para gobiernos extranjeros
U122: =SUM(I122:T122) -> 0 | V122: 0 | DX122: 5610 | DY122: Maquinaria y equipo agropecuario
U123: 0 | V123: 0 | DX123: 5620 | DY123: Maquinaria y equipo industrial
U124: 0 | V124: 0 | DX124: 5630 | DY124: Maquinaria y equipo de construcción
B125: COMPONENTE 5 | C125: Informe trimestral del estatus de la seguridad en el municipio presentado | D125: =SUM(F128:F156) -> 1444625 | H125: =SUM(G128) -> 1444625 | U125: =SUM(U96:U124) -> 1444625 | V125: =G96-U125 -> 0 | DX125: 5640 | DY125: Sistemas de aire acondicionado, calefacción y de refrigeración industrial y comercial
DX126: 5650 | DY126: Equipo de comunicación y telecomunicación
DX127: 5660 | DY127: Equipos de generación eléctrica, aparatos y accesorios eléctricos
B128: UR | C128: 31111M120070100 - Secretaría de Seguridad Pública | D128: 2110 | E128: =IF(D128>0,VLOOKUP(D128,$DX$1:$DY$227,2)," ") -> Materiales, útiles y equipos menores de oficina | F128: =+Hoja1!E112 -> 7000 | G128: =SUM(F128:F156) -> 1444625 | I128: =$F128/12 -> 583.3333333 | J128: 583.3333333 | K128: 583.3333333 | L128: 583.3333333 | M128: 583.3333333 | N128: 583.3333333 | O128: 583.3333333 | P128: 583.3333333 | Q128: 583.3333333 | R128: 583.3333333 | S128: 583.3333333 | T128: 583.3333333 | U128: =SUM(I128:T128) -> 7000 | V128: =F128-U128 -> 0 | DX128: 5670 | DY128: Herramientas y máquinas‐herramienta
D129: 2120 | E129: Materiales y útiles de impresión y reproducción | F129: =+Hoja1!E113 -> 7500 | I129: 625 | J129: 625 | K129: 625 | L129: 625 | M129: 625 | N129: 625 | O129: 625 | P129: 625 | Q129: 625 | R129: 625 | S129: 625 | T129: 625 | U129: 7500 | V129: =F129-U129 -> 0 | DX129: 5690 | DY129: Otros equipos
D130: 2150 | E130: Materiales y útiles de impresión y reproducción | F130: =+Hoja1!E114 -> 5000 | I130: 416.6666667 | J130: 416.6666667 | K130: 416.6666667 | L130: 416.6666667 | M130: 416.6666667 | N130: 416.6666667 | O130: 416.6666667 | P130: 416.6666667 | Q130: 416.6666667 | R130: 416.6666667 | S130: 416.6666667 | T130: 416.6666667 | U130: 5000 | V130: 0 | DX130: 5710 | DY130: Bovinos
D131: 2611 | E131: Combustibles, lubricantes y aditivos | F131: =+Hoja1!E115 -> 780000 | I131: 65000 | J131: 65000 | K131: 65000 | L131: 65000 | M131: 65000 | N131: 65000 | O131: 65000 | P131: 65000 | Q131: 65000 | R131: 65000 | S131: 65000 | T131: 65000 | U131: 780000 | V131: 0 | DX131: 5720 | DY131: Porcinos
D132: 2710 | E132: Vestuario y uniformes | F132: =+Hoja1!E116 -> 105000 | I132: 8750 | J132: 8750 | K132: 8750 | L132: 8750 | M132: 8750 | N132: 8750 | O132: 8750 | P132: 8750 | Q132: 8750 | R132: 8750 | S132: 8750 | T132: 8750 | U132: 105000 | V132: 0 | DX132: 5730 | DY132: Aves
D133: 2930 | E133: Refacciones y accesorios menores de mobiliario y equipo de administración, educacional y recreativo | F133: =+Hoja1!E117 -> 2000 | I133: 166.6666667 | J133: 166.6666667 | K133: 166.6666667 | L133: 166.6666667 | M133: 166.6666667 | N133: 166.6666667 | O133: 166.6666667 | P133: 166.6666667 | Q133: 166.6666667 | R133: 166.6666667 | S133: 166.6666667 | T133: 166.6666667 | U133: 2000 | V133: 0 | DX133: 5740 | DY133: Ovinos y caprinos
D134: 2940 | E134: Refacciones y accesorios menores de equipo de cómputo y tecnologías de la información | F134: =+Hoja1!E118 -> 500 | I134: 41.66666667 | J134: 41.66666667 | K134: 41.66666667 | L134: 41.66666667 | M134: 41.66666667 | N134: 41.66666667 | O134: 41.66666667 | P134: 41.66666667 | Q134: 41.66666667 | R134: 41.66666667 | S134: 41.66666667 | T134: 41.66666667 | U134: 500 | V134: 0 | DX134: 5750 | DY134: Peces y acuicultura
D135: 2960 | E135: Refacciones y accesorios menores de equipo de transporte | F135: =+Hoja1!E119 -> 225000 | I135: 18750 | J135: 18750 | K135: 18750 | L135: 18750 | M135: 18750 | N135: 18750 | O135: 18750 | P135: 18750 | Q135: 18750 | R135: 18750 | S135: 18750 | T135: 18750 | U135: 225000 | V135: 0 | DX135: 5760 | DY135: Equinos
D136: 3110 | E136: Refacciones y accesorios menores otros bienes muebles | F136: =+Hoja1!E120 -> 34800 | I136: 2900 | J136: 2900 | K136: 2900 | L136: 2900 | M136: 2900 | N136: 2900 | O136: 2900 | P136: 2900 | Q136: 2900 | R136: 2900 | S136: 2900 | T136: 2900 | U136: 34800 | V136: 0 | DX136: 5770 | DY136: Especies menores y de zoológico
D137: 3140 | E137: Refacciones y accesorios menores otros bienes muebles | F137: =+Hoja1!E121 -> 6825 | I137: 568.75 | J137: 568.75 | K137: 568.75 | L137: 568.75 | M137: 568.75 | N137: 568.75 | O137: 568.75 | P137: 568.75 | Q137: 568.75 | R137: 568.75 | S137: 568.75 | T137: 568.75 | U137: 6825 | V137: 0 | DX137: 5780 | DY137: Árboles y plantas
D138: 3230 | E138: Refacciones y accesorios menores otros bienes muebles | F138: =+Hoja1!E122 -> 3500 | I138: 291.6666667 | J138: 291.6666667 | K138: 291.6666667 | L138: 291.6666667 | M138: 291.6666667 | N138: 291.6666667 | O138: 291.6666667 | P138: 291.6666667 | Q138: 291.6666667 | R138: 291.6666667 | S138: 291.6666667 | T138: 291.6666667 | U138: 3500 | V138: 0 | DX138: 5790 | DY138: Otros activos biológicos
D139: 3350 | E139: Refacciones y accesorios menores otros bienes muebles | F139: =+Hoja1!E123 -> 40000 | I139: 3333.333333 | J139: 3333.333333 | K139: 3333.333333 | L139: 3333.333333 | M139: 3333.333333 | N139: 3333.333333 | O139: 3333.333333 | P139: 3333.333333 | Q139: 3333.333333 | R139: 3333.333333 | S139: 3333.333333 | T139: 3333.333333 | U139: 40000 | V139: 0 | DX139: 5810 | DY139: Terrenos
D140: 3450 | E140: Seguro de bienes patrimoniales | F140: =+Hoja1!E124 -> 65300 | I140: 5441.666667 | J140: 5441.666667 | K140: 5441.666667 | L140: 5441.666667 | M140: 5441.666667 | N140: 5441.666667 | O140: 5441.666667 | P140: 5441.666667 | Q140: 5441.666667 | R140: 5441.666667 | S140: 5441.666667 | T140: 5441.666667 | U140: 65300 | V140: 0 | DX140: 5820 | DY140: Viviendas
D141: 3510 | E141: Conservación y mantenimiento menor de inmuebles | F141: =+Hoja1!E125 -> 3000 | I141: 250 | J141: 250 | K141: 250 | L141: 250 | M141: 250 | N141: 250 | O141: 250 | P141: 250 | Q141: 250 | R141: 250 | S141: 250 | T141: 250 | U141: 3000 | V141: 0 | DX141: 5830 | DY141: Edificios no residenciales
D142: 3530 | E142: Instalación, reparación y mantenimiento de equipo de cómputo y tecnología de la información | F142: =+Hoja1!E126 -> 1500 | I142: 125 | J142: 125 | K142: 125 | L142: 125 | M142: 125 | N142: 125 | O142: 125 | P142: 125 | Q142: 125 | R142: 125 | S142: 125 | T142: 125 | U142: 1500 | V142: 0 | DX142: 5890 | DY142: Otros bienes inmuebles
D143: 3550 | E143: Reparación y mantenimiento de equipo de transporte | F143: =+Hoja1!E127 -> 130000 | I143: 10833.33333 | J143: 10833.33333 | K143: 10833.33333 | L143: 10833.33333 | M143: 10833.33333 | N143: 10833.33333 | O143: 10833.33333 | P143: 10833.33333 | Q143: 10833.33333 | R143: 10833.33333 | S143: 10833.33333 | T143: 10833.33333 | U143: 130000 | V143: 0 | DX143: 5910 | DY143: Software
D144: 3560 | E144: Reparación y mantenimiento de equipo de defensa y seguridad | F144: =+Hoja1!E128 -> 2000 | I144: 166.6666667 | J144: 166.6666667 | K144: 166.6666667 | L144: 166.6666667 | M144: 166.6666667 | N144: 166.6666667 | O144: 166.6666667 | P144: 166.6666667 | Q144: 166.6666667 | R144: 166.6666667 | S144: 166.6666667 | T144: 166.6666667 | U144: 2000 | V144: 0 | DX144: 5920 | DY144: Patentes
D145: 3750 | E145: Viáticos en el país | F145: =+Hoja1!E129 -> 700 | I145: 58.33333333 | J145: 58.33333333 | K145: 58.33333333 | L145: 58.33333333 | M145: 58.33333333 | N145: 58.33333333 | O145: 58.33333333 | P145: 58.33333333 | Q145: 58.33333333 | R145: 58.33333333 | S145: 58.33333333 | T145: 58.33333333 | U145: 700 | V145: 0 | DX145: 5930 | DY145: Marcas
D146: 3820 | E146: Viáticos en el extranjero | F146: =+Hoja1!E130 -> 12000 | I146: 1000 | J146: 1000 | K146: 1000 | L146: 1000 | M146: 1000 | N146: 1000 | O146: 1000 | P146: 1000 | Q146: 1000 | R146: 1000 | S146: 1000 | T146: 1000 | U146: 12000 | V146: 0 | DX146: 5940 | DY146: Derechos
D147: 3851 | E147: Viáticos en el extranjero | F147: =+Hoja1!E131 -> 1000 | I147: 83.33333333 | J147: 83.33333333 | K147: 83.33333333 | L147: 83.33333333 | M147: 83.33333333 | N147: 83.33333333 | O147: 83.33333333 | P147: 83.33333333 | Q147: 83.33333333 | R147: 83.33333333 | S147: 83.33333333 | T147: 83.33333333 | U147: 1000 | V147: 0 | DX147: 5950 | DY147: Concesiones
D148: 3852 | E148: Viáticos en el extranjero | F148: =+Hoja1!E132 -> 12000 | I148: 1000 | J148: 1000 | K148: 1000 | L148: 1000 | M148: 1000 | N148: 1000 | O148: 1000 | P148: 1000 | Q148: 1000 | R148: 1000 | S148: =$F148/12 -> 1000 | T148: 1000 | U148: =SUM(I148:T148) -> 12000 | V148: 0 | DX148: 5960 | DY148: Franquicias
F149: =+Hoja1!E133 -> 0 | I149: 0 | J149: 0 | K149: 0 | L149: 0 | M149: 0 | N149: 0 | O149: 0 | P149: 0 | Q149: 0 | R149: 0 | S149: 0 | T149: 0 | U149: =SUM(I149:T149) -> 0 | V149: 0 | DX149: 5970 | DY149: Licencias informaticas e intelectuales
F150: =+Hoja1!E134 -> 0 | I150: 0 | J150: 0 | K150: 0 | L150: 0 | M150: 0 | N150: 0 | O150: 0 | P150: 0 | Q150: 0 | R150: 0 | S150: 0 | T150: 0 | U150: 0 | V150: 0 | DX150: 5980 | DY150: Licencias industriales, comerciales y otras
F151: =+Hoja1!E135 -> 0 | I151: 0 | J151: 0 | K151: 0 | L151: 0 | M151: 0 | N151: 0 | O151: 0 | P151: 0 | Q151: 0 | R151: 0 | S151: 0 | T151: 0 | U151: 0 | V151: 0 | DX151: 5990 | DY151: Otros activos intangibles
F152: =+Hoja1!E136 -> 0 | I152: 0 | J152: 0 | K152: 0 | L152: 0 | M152: 0 | N152: 0 | O152: 0 | P152: 0 | Q152: 0 | R152: 0 | S152: 0 | T152: 0 | U152: 0 | V152: 0 | DX152: 6110 | DY152: Edificación habitacional
F153: =+Hoja1!E137 -> 0 | I153: 0 | J153: 0 | K153: 0 | L153: 0 | M153: 0 | N153: 0 | O153: 0 | P153: 0 | Q153: 0 | R153: 0 | S153: 0 | T153: 0 | U153: 0 | V153: 0 | DX153: 6120 | DY153: Edificación no habitacional
U154: =SUM(I154:T154) -> 0 | V154: 0 | DX154: 7240 | DY154: Acciones y participaciones de capital en el sector privado con fines de política económica
U155: 0 | V155: 0 | DX155: 7250 | DY155: Acciones y participaciones de capital en organismos internacionales con fines de política económica
U156: 0 | V156: 0 | DX156: 7260 | DY156: Acciones y participaciones de capital en el sector externo con fines de política económica
U157: =SUM(U128:U156) -> 1444625 | V157: =G128-U157 -> 0 | DX157: 7270 | DY157: Acciones y participaciones de capital en el sector público con fines de gestión de liquidez
DX158: 7280 | DY158: Acciones y participaciones de capital en el sector privado con fines de gestión de liquidez
DX159: 7290 | DY159: Acciones y participaciones de capital en el sector externo con fines de gestión de liquidez
U160: =SUM(I160:T160) -> 0 | V160: =F160-U160 -> 0 | DX160: 7310 | DY160: Bonos
U161: 0 | V161: =F161-U161 -> 0 | DX161: 7320 | DY161: Valores representativos de deuda adquiridos con fines de política económica
U162: 0 | V162: 0 | DX162: 7330 | DY162: Valores representativos de deuda adquiridos con fines de gestión de liquidez
U163: 0 | V163: 0 | DX163: 7340 | DY163: Obligaciones negociables adquiridas con fines de política económica
U164: 0 | V164: 0 | DX164: 7350 | DY164: Obligaciones negociables adquiridas con fines de gestión de liquidez
U165: 0 | V165: 0 | DX165: 7390 | DY165: Otros valores
U166: 0 | V166: 0 | DX166: 7410 | DY166: Concesión de préstamos a entidades paraestatales no empresariales y no financieras con fines de política económica
U167: 0 | V167: 0 | DX167: 7420 | DY167: Concesión de préstamos a entidades paraestatales empresariales y no financieras con fines de política económica
U168: 0 | V168: 0 | DX168: 7430 | DY168: Concesión de préstamos a instituciones paraestatales públicas financieras con fines de política económica
U169: 0 | V169: 0 | DX169: 7440 | DY169: Concesión de préstamos a entidades federativas y municipios con fines de política económica
U170: 0 | V170: 0 | DX170: 7450 | DY170: Concesión de préstamos al sector privado con fines de política económica
U171: 0 | V171: 0 | DX171: 7460 | DY171: Concesión de préstamos al sector externo con fines de política económica
U172: 0 | V172: 0 | DX172: 7470 | DY172: Concesión de préstamos al sector público con fines de gestión de liquidez
U173: 0 | V173: 0 | DX173: 7480 | DY173: Concesión de préstamos al sector privado con fines de gestión de liquidez
U174: 0 | V174: 0 | DX174: 7490 | DY174: Concesión de préstamos al sector externo con fines de gestión de liquidez
U175: 0 | V175: 0 | DX175: 7510 | DY175: Inversiones en fideicomisos del Poder Ejecutivo
U176: 0 | V176: 0 | DX176: 7520 | DY176: Inversiones en fideicomisos del Poder Legislativo
U177: 0 | V177: 0 | DX177: 7530 | DY177: Inversiones en fideicomisos del Poder Judicial
U178: 0 | V178: 0 | DX178: 7540 | DY178: Inversiones en fideicomisos públicos no empresariales y no financieros
U179: 0 | V179: 0 | DX179: 7550 | DY179: Inversiones en fideicomisos públicos empresariales y no financieros
U180: =SUM(I180:T180) -> 0 | V180: 0 | DX180: 7560 | DY180: Inversiones en fideicomisos públicos financieros
U181: =SUM(I181:T181) -> 0 | V181: 0 | DX181: 7570 | DY181: Inversiones en fideicomisos de entidades federativas
U182: 0 | V182: 0 | DX182: 7580 | DY182: Inversiones en fideicomisos de municipios
U183: 0 | V183: 0 | DX183: 7590 | DY183: Fideicomisos de empresas privadas y particulares
U184: 0 | V184: 0 | DX184: 7610 | DY184: Depósitos a largo plazo en moneda nacional
U185: 0 | V185: 0 | DX185: 7620 | DY185: Depósitos a largo plazo en moneda extranjera
U186: 0 | V186: 0 | DX186: 7910 | DY186: Contingencias por fenómenos naturales
U187: 0 | V187: 0 | DX187: 7920 | DY187: Contingencias socioeconómicas
U188: 0 | V188: 0 | DX188: 7990 | DY188: Otras erogaciones especiales
U189: 0 | V189: 0 | DX189: 8110 | DY189: Fondo general de participaciones
U190: 0 | V190: 0 | DX190: 8120 | DY190: Fondo de fomento municipal
U191: 0 | V191: 0 | DX191: 8130 | DY191: Participaciones de las entidades federativas a los municipios
U192: 0 | V192: 0 | DX192: 8140 | DY192: Otros conceptos participables de la Federación a entidades federativas
U193: 0 | V193: 0 | DX193: 8150 | DY193: Otros conceptos participables de la Federación a municipios
U194: 0 | V194: 0 | DX194: 8160 | DY194: Convenios de colaboración administrativa
U195: 0 | V195: 0 | DX195: 8310 | DY195: Aportaciones de la Federación a las entidades federativas
U196: 0 | V196: 0 | DX196: 8320 | DY196: Aportaciones de la Federación a municipios
U197: 0 | V197: 0 | DX197: 8330 | DY197: Aportaciones de las entidades federativas a los municipios
U198: 0 | V198: 0 | DX198: 8340 | DY198: Aportaciones previstas en leyes y decretos al sistema de protección social
U199: =SUM(I199:T199) -> 0 | V199: 0 | DX199: 8350 | DY199: Aportaciones previstas en leyes y decretos compensatorias a entidades federativas y municipios
U200: =SUM(I200:T200) -> 0 | V200: 0 | DX200: 8510 | DY200: Convenios de reasignación
... 236 more rows

Sheet Hoja1 (hidden)
A3: Total | B3: =SUM(B4:B29) -> 14446250 | D3: Componente 1 | E3: =+FORMATO!DA32 -> 0.3
A4: 2110 | B4: 70000 | D4: 2110 | E4: =$E$3*B4 -> 21000
A5: 2120 | B5: 75000 | D5: 2120 | E5: =$E$3*B5 -> 22500
A6: 2150 | B6: 50000 | D6: 2150 | E6: 15000
A7: 2611 | B7: 7800000 | D7: 2611 | E7: 2340000
A8: 2710 | B8: 1050000 | D8: 2710 | E8: 315000
A9: 2930 | B9: 20000 | D9: 2820 | E9: 6000
A10: 2940 | B10: 5000 | D10: 2940 | E10: 1500
A11: 2960 | B11: 2250000 | D11: 2960 | E11: 675000
A12: 3110 | B12: 348000 | D12: 3110 | E12: 104400
A13: 3140 | B13: 68250 | D13: 3140 | E13: 20475
A14: 3230 | B14: 35000 | D14: 3230 | E14: 10500
A15: 3350 | B15: 400000 | D15: 3312 | E15: 120000
A16: 3450 | B16: 653000 | D16: 3350 | E16: 195900
A17: 3510 | B17: 30000 | D17: 3450 | E17: 9000
A18: 3530 | B18: 15000 | D18: 3510 | E18: 4500
A19: 3550 | B19: 1300000 | D19: 3530 | E19: 390000
A20: 3560 | B20: 20000 | D20: 3550 | E20: 6000
A21: 3750 | B21: 7000 | D21: 3560 | E21: 2100
A22: 3820 | B22: 120000 | D22: 3750 | E22: 36000
A23: 3851 | B23: 10000 | D23: 3820 | E23: 3000
A24: 3852 | B24: 120000 | D24: 3851 | E24: 36000
D25: 3852 | E25: 0
D26: 5150 | E26: 0
D27: 5190 | E27: 0
D28: 5210 | E28: =$E$3*B28 -> 0
D29: 5230 | E29: 0
D30: Componente 2 | E30: =+FORMATO!DA66 -> 0.3
D31: 2110 | E31: =$E$30*B4 -> 21000
D32: 2120 | E32: =$E$30*B5 -> 22500
D33: 2150 | E33: 15000
D34: 2611 | E34: 2340000
D35: 2710 | E35: 315000
D36: 2820 | E36: 6000
D37: 2940 | E37: 1500
D38: 2960 | E38: 675000
D39: 3110 | E39: 104400
D40: 3140 | E40: 20475
D41: 3230 | E41: 10500
D42: 3312 | E42: 120000
D43: 3350 | E43: 195900
D44: 3450 | E44: 9000
D45: 3510 | E45: 4500
D46: 3530 | E46: 390000
D47: 3550 | E47: 6000
D48: 3560 | E48: 2100
D49: 3750 | E49: 36000
D50: 3820 | E50: 3000
D51: 3851 | E51: 36000
D52: 3852 | E52: 0
D53: 5150 | E53: 0
D54: 5190 | E54: 0
D55: 5210 | E55: 0
D56: 5230 | E56: 0
D57: Componente 3 | E57: =+FORMATO!DA100 -> 0.2
D58: 2110 | E58: =$E$57*B4 -> 14000
D59: 2120 | E59: =$E$57*B5 -> 15000
D60: 2150 | E60: 10000
D61: 2611 | E61: 1560000
D62: 2710 | E62: 210000
D63: 2820 | E63: 4000
D64: 2940 | E64: 1000
D65: 2960 | E65: 450000
D66: 3110 | E66: 69600
D67: 3140 | E67: 13650
D68: 3230 | E68: 7000
D69: 3312 | E69: 80000
D70: 3350 | E70: 130600
D71: 3450 | E71: 6000
D72: 3510 | E72: 3000
D73: 3530 | E73: 260000
D74: 3550 | E74: 4000
D75: 3560 | E75: 1400
D76: 3750 | E76: 24000
D77: 3820 | E77: 2000
D78: 3851 | E78: 24000
D79: 3852 | E79: 0
D80: 5150 | E80: =$E$57*B26 -> 0
D81: 5190 | E81: 0
D82: 5210 | E82: 0
D83: 5230 | E83: 0
D84: Componente 4 | E84: =+FORMATO!DA134 -> 0.1
D85: 2110 | E85: =$E$84*B4 -> 7000
D86: 2120 | E86: =$E$84*B5 -> 7500
D87: 2150 | E87: 5000
D88: 2611 | E88: 780000
D89: 2710 | E89: 105000
D90: 2820 | E90: 2000
D91: 2940 | E91: 500
D92: 2960 | E92: 225000
D93: 3110 | E93: 34800
D94: 3140 | E94: 6825
D95: 3230 | E95: 3500
D96: 3312 | E96: 40000
D97: 3350 | E97: 65300
D98: 3450 | E98: 3000
D99: 3510 | E99: 1500
D100: 3530 | E100: 130000
D101: 3550 | E101: 2000
D102: 3560 | E102: 700
D103: 3750 | E103: 12000
D104: 3820 | E104: 1000
D105: 3851 | E105: 12000
D106: 3852 | E106: 0
D107: 5150 | E107: 0
D108: 5190 | E108: 0
D109: 5210 | E109: 0
D110: 5230 | E110: 0
D111: Componente 5 | E111: =+FORMATO!DA168 -> 0.1
D112: 2110 | E112: =$E$111*B4 -> 7000
D113: 2120 | E113: =$E$111*B5 -> 7500
D114: 2150 | E114: 5000
D115: 2611 | E115: 780000
D116: 2710 | E116: 105000
D117: 2820 | E117: 2000
D118: 2940 | E118: 500
D119: 2960 | E119: 225000
D120: 3110 | E120: 34800
D121: 3140 | E121: 6825
D122: 3230 | E122: 3500
D123: 3312 | E123: 40000
D124: 3350 | E124: 65300
D125: 3450 | E125: 3000
D126: 3510 | E126: 1500
D127: 3530 | E127: 130000
D128: 3550 | E128: 2000
D129: 3560 | E129: 700
D130: 3750 | E130: 12000
D131: 3820 | E131: 1000
D132: 3851 | E132: 12000
D133: 3852 | E133: 0
D134: 5150 | E134: 0
D135: 5190 | E135: 0
D136: 5210 | E136: 0
D137: 5230 | E137: 0

Sheet COG (hidden)
A1: Propuesta de COG Municipal 2015
B2: Fuente: COG D.O.F. 10.06.2010
B3: Capítulo.- Es el mayor nivel de agregación que identifica el conjunto homogéneo y ordenado de los bienes y servicios requeridos por los entes públicos.
B4: Concepto.- Son subconjuntos homogéneos y ordenados en forma específica, producto de la desagregación de los bienes y servicios, incluidos en cada capítulo.
B5: La partida, que es el nivel de agregación más específico, en el cual se describen las expresiones concretas y detalladas de los bienes y servicios que se adquieren.
B6: a) Genérica, se refiere al tercer digito, el cual logrará la armonización a todos los niveles
B7: b) Específica, corresponde al cuarto digito, se genera la apertura con base en las necesidades del ente público
F8: LIGA | I8: https://www.conac.gob.mx/work/models/CONAC/normatividad/NOR_01_02_006.pdf
B10: Capítulo | C10: Concepto | D10: Partida | F10: Denominación | I10: Definición
A11: no | D11: Genérica | E11: Específica
A12: 1 | B12: 1000 | F12: SERVICIOS PERSONALES | G12: 1000 | H12: 1000 SERVICIOS PERSONALES | I12: Agrupa las remuneraciones del personal al servicio de los entes públicos, tales como: sueldos, salarios, dietas, honorarios asimilables al salario, prestaciones y gastos de seguridad social, obligaciones laborales y otras prestaciones derivadas de una relación laboral; pudiendo ser de carácter permanente o transitorio.
A13: 2 | C13: 1100 | F13: Remuneraciones al personal de carácter permanente | G13: 1100 | H13: 1100 REMUNERACIONES AL PERSONAL DE CARACTER PERMANENTE | I13: Asignaciones destinadas a cubrir las percepciones correspondientes al personal de carácter permanente.
A14: 3 | D14: 1110 | F14: Dietas | G14: 1110 | H14: 111 Dietas | I14: Asignaciones para remuneraciones a los Diputados, Senadores, Asambleístas, Regidores y Síndicos.
A15: 4 | E15: 1111 | F15: Dietas
A16: 5 | D16: 1120 | F16: Haberes | G16: 1120 | H16: 112 Haberes | I16: Asignaciones para remuneraciones al personal que desempeña sus servicios en el ejército, fuerza aérea y armada nacionales.
A17: 6 | E17: 1121 | F17: Haberes
A18: 7 | D18: 1130 | F18: Sueldo base al personal permanente | G18: 1130 | H18: 113 Sueldos base al personal permanente | I18: Asignaciones para remuneraciones al personal civil, de base o de confianza, de carácter permanente que preste sus servicios en los entes públicos. Los montos que importen estas remuneraciones serán fijados de acuerdo con los catálogos institucionales de puestos de los entes públicos.
A19: 8 | E19: 1131 | F19: Sueldos Base
A20: 9 | D20: 1140 | F20: Remuneraciones por adscripción laboral en el extranjero | G20: 1140 | H20: 114 Remuneraciones por adscripción laboral en el extranjero | I20: Asignaciones destinadas a cubrir las remuneraciones del personal al Servicio Exterior Mexicano y de Servicios Especiales en el Extranjero, así como representaciones estatales y municipales en el extranjero. Incluye las variaciones del factor de ajuste: importancia relativa de la oficina de adscripción; costo de la vida en el lugar de adscripción y condiciones de dificultad de la vida en cada adscripción. Dichas remuneraciones son cubiertas exclusivamente al personal que labore en esas representaciones en el exterior.
A21: 10 | E21: 1141 | F21: Remuneraciones en el extranjero
A22: 11 | C22: 1200 | F22: Remuneraciones al personal de carácter transitorio | G22: 1200 | H22: 1200 REMUNERACIONES AL PERSONAL DE CARACTER TRANSITORIO | I22: Asignaciones destinadas a cubrir las percepciones correspondientes al personal de carácter eventual.
A23: 12 | D23: 1210 | F23: Honorarios asimilables a salarios | G23: 1210 | H23: 121 Honorarios asimilables a salarios | I23: Asignaciones destinadas a cubrir el pago por la prestación de servicios contratados con personas físicas, como profesionistas, técnicos, expertos y peritos, entre otros, por estudios, obras o trabajos determinados que correspondan a su especialidad. El pago de honorarios deberá sujetarse a las disposiciones aplicables. Esta partida excluye los servicios profesionales contratados con personas físicas o morales previstos en el Capítulo 3000 Servicios Generales.
A24: 13 | E24: 1211 | F24: Honorarios
A25: 14 | E25: 1212 | F25: Honorarios asimilados
A26: 15 | D26: 1220 | F26: Sueldos base al personal eventual | G26: 1220 | H26: 122 Sueldos base al personal eventual | I26: Asignaciones destinadas a cubrir las remuneraciones para el pago al personal de carácter transitorio que preste sus servicios en los entes públicos.
A27: 16 | E27: 1221 | F27: Remuneraciones para eventuales
A28: 17 | D28: 1230 | F28: Retribuciones por servicios de carácter social | G28: 1230 | H28: 123 Retribuciones por servicios de carácter social | I28: Asignaciones destinadas a cubrir las remuneraciones a profesionistas de las diversas carreras o especialidades técnicas que presten su servicio social en los entes públicos.
A29: 18 | E29: 1231 | F29: Servicio social
A30: 19 | D30: 1240 | F30: Retribución a los representantes de los trabajadores y de los patrones en la Junta de Conciliación y Arbitraje | G30: 1240 | H30: 124 Retribución a los representantes de los trabajadores y de los patrones en la Junta de Conciliación y Arbitraje | I30: Asignaciones destinadas a cubrir las retribuciones de los representantes de los trabajadores y de los patrones en la Junta de Conciliación y Arbitraje, durante el tiempo por el cual fueron elegidos por la convención correspondiente, conforme a lo dispuesto por la Ley Federal del Trabajo. Esta partida no estará sujeta al pago de las cuotas y aportaciones por concepto de seguridad social.
A31: 20 | E31: 1241 | F31: Junta de Conciliación y Arbitraje
A32: 21 | C32: 1300 | F32: Remuneraciones adicionales y especiales | G32: 1300 | H32: 1300 REMUNERACIONES ADICIONALES Y ESPECIALES | I32: Asignaciones destinadas a cubrir percepciones adicionales y especiales, así como las gratificaciones que se otorgan tanto al personal de carácter permanente como transitorio.
A33: 22 | D33: 1310 | F33: Primas por años de servicios efectivos prestados | G33: 1310 | H33: 131 Primas por años de servicios efectivos prestados | I33: Asignaciones adicionales como complemento al sueldo del personal al servicio de los entes públicos, por años de servicios efectivos prestados, de acuerdo con la legislación aplicable.
A34: 23 | E34: 1311 | F34: Prima quinquenal
A35: 24 | E35: 1312 | F35: Antigüedad
A36: 25 | D36: 1320 | F36: Primas de vacaciones, dominical y gratificación de fin de año | G36: 1320 | H36: 132 Primas de vacaciones, dominical y gratificación de fin de año | I36: Asignaciones al personal que tenga derecho a vacaciones o preste sus servicios en domingo; aguinaldo o gratificación de fin de año al personal civil y militar al servicio de los entes públicos.
A37: 26 | E37: 1321 | F37: Prima Vacacional
A38: 27 | E38: 1322 | F38: Prima Dominical
A39: 28 | E39: 1323 | F39: Gratificación de fin de año
A40: 29 | D40: 1330 | F40: Horas extraordinarias | G40: 1330 | H40: 133 Horas extraordinarias | I40: Asignaciones por remuneraciones a que tenga derecho el personal de los entes públicos por servicios prestados en horas que se realizan excediendo la duración máxima de la jornada de trabajo, guardias o turnos opcionales.
A41: 30 | E41: 1331 | F41: Remuneraciones por horas extraordinarias
A42: 31 | D42: 1340 | F42: Compensaciones | G42: 1340 | H42: 134 Compensaciones | I42: Asignaciones destinadas a cubrir las percepciones que se otorgan a los servidores públicos bajo el esquema de compensaciones que determinen las disposiciones aplicables.
A43: 32 | E43: 1341 | F43: Compensaciones por servicios eventuales
A44: 33 | E44: 1342 | F44: Compensaciones por servicios
A45: 34 | D45: 1350 | F45: Sobrehaberes | G45: 1350 | H45: 135 Sobrehaberes | I45: Remuneraciones adicionales que se cubre al personal militar en activo en atención al incremento en el costo de la vida o insalubridad del lugar donde preste sus servicios.
A46: 35 | E46: 1351 | F46: Sobrehaberes
A47: 36 | D47: 1360 | F47: Asignaciones de técnico, de mando, por comisión, de vuelo y de técnico especial | G47: 1360 | H47: 136 Asignaciones de técnico, de mando, por comisión, de vuelo y de técnico especial | I47: Remuneraciones a los miembros del Ejército, Fuerza Aérea y Armada Nacionales, titulados en profesiones de los distintos servicios militares, por el desempeño de comisiones dentro del Ramo y que pertenezcan a la milicia permanente; remuneraciones a generales, jefes y oficiales investidos conforme a las leyes y ordenanzas del mando militar, de una corporación del ejército o de una unidad de la armada. Su cuota no podrá variar durante el ejercicio fiscal respectivo. Remuneraciones a los miembros del ejército y la armada por el desempeño de una comisión que no sea la propia de su cargo, como en los Estados Mayores de los Secretarios y Subsecretarios, Ayudantía del Oficial Mayor y Jefes de Sección de los diversos Departamentos de la Secretaría de la Defensa Nacional y ayudantía de los funcionarios superiores de la Secretaría de Marina; remuneraciones a los miembros del ejército y la armada, que habitualmente desempeñan servicios en unidades aéreas de las Fuerzas Armadas Mexicanas remuneraciones complementarias a los haberes de los generales del ejército y fuerza aérea, así como de los almirantes de la armada que sean autorizadas por el titular del Ramo y las que éste mismo autorice en casos especiales para los jefes y oficiales del ejército y fuerza aérea, capitanes y oficiales de la armada.
A48: 37 | E48: 1361 | F48: Técnico especial
A49: 38 | D49: 1370 | F49: Honorarios especiales | G49: 1370 | H49: 137 Honorarios especiales | I49: Asignaciones destinadas a cubrir los honorarios que correspondan a los representantes de la Hacienda Pública por su intervención en los juicios sucesorios, siempre y cuando el impuesto se hubiere determinado con base en la liquidación formulada por los mismos; a los notificadores especiales en el cobro de impuestos, derechos, multas y arrendamientos, así como a los agentes y subagentes fiscales y postales. Comprende las remuneraciones y gastos del personal designado para realizar inspecciones o intervenciones especiales, así como los programas de presencia fiscal. Estas asignaciones se cubrirán por compromisos devengados durante el año y no se aceptarán los compromisos de ejercicios anteriores.
A50: 39 | E50: 1371 | F50: Honorarios especiales
A51: 40 | D51: 1380 | F51: Participaciones por vigilancia en el cumplimiento de las leyes y custodia de valores | G51: 1380 | H51: 138 Participaciones por vigilancia en el cumplimiento de las leyes y custodia de valores | I51: Incluye retribución a los empleados de los entes públicos por su participación en la vigilancia del cumplimiento de las leyes y custodia de valores.
A52: 41 | E52: 1381 | F52: Participaciones por vigilancia
A53: 42 | C53: 1400 | F53: Seguridad Social | G53: 1400 | H53: 1400 SEGURIDAD SOCIAL | I53: Asignaciones destinadas a cubrir la parte que corresponde a los entes públicos por concepto de prestaciones de seguridad social y primas de seguros, en beneficio del personal a su servicio, tanto de carácter permanente como transitorio.
A54: 43 | D54: 1410 | F54: Aportaciones de seguridad social | G54: 1410 | H54: 141 Aportaciones de seguridad social | I54: Asignaciones destinadas a cubrir la aportación de los entes públicos, por concepto de seguridad social, en los términos de la legislación vigente.
A55: 44 | E55: 1411 | F55: Aportaciones al ISSEG
A56: 45 | E56: 1412 | F56: Cuotas al ISSSTE
A57: 46 | E57: 1413 | F57: Aportaciones IMSS
A58: 47 | D58: 1420 | F58: Aportaciones a fondos de vivienda | G58: 1420 | H58: 142 Aportaciones a fondos de vivienda | I58: Asignaciones destinadas a cubrir las aportaciones que corresponden a los entes públicos para proporcionar vivienda a su personal, de acuerdo con las disposiciones legales vigentes.
A59: 48 | E59: 1421 | F59: Aportaciones INFONAVIT
A60: 49 | D60: 1430 | F60: Aportaciones al sistema para el retiro | G60: 1430 | H60: 143 Aportaciones al sistema para el retiro | I60: Asignaciones destinadas a cubrir los montos de las aportaciones de los entes públicos a favor del Sistema para el Retiro, correspondientes a los trabajadores al servicio de los mismos.
A61: 50 | E61: 1431 | F61: Ahorro para el retiro
A62: 51 | D62: 1440 | F62: Aportaciones para seguros | G62: 1440 | H62: 144 Aportaciones para seguros | I62: Asignaciones destinadas a cubrir las primas que corresponden a los entes públicos por concepto de seguro de vida, seguro de gastos médicos del personal a su servicio; así como, los seguros de responsabilidad civil y asistencia legal, en los términos de la legislación vigente. Incluye las primas que corresponden al Gobierno Federal por concepto de seguro de vida del personal militar.
A63: 52 | E63: 1441 | F63: Seguros
A64: 53 | C64: 1500 | F64: Otras prestaciones sociales y económicas | G64: 1500 | H64: 1500 OTRAS PRESTACIONES SOCIALES Y ECONOMICAS | I64: Asignaciones destinadas a cubrir otras prestaciones sociales y económicas, a favor del personal, de acuerdo con las disposiciones legales vigentes y/o acuerdos contractuales respectivos.
A65: 54 | D65: 1510 | F65: Cuotas para el fondo de ahorro y fondo de trabajo | G65: 1510 | H65: 151 Cuotas para el fondo de ahorro y fondo de trabajo | I65: Asignaciones destinadas a cubrir las cuotas que corresponden a los entes públicos para la constitución del fondo de ahorro del personal civil, según acuerdos contractuales establecidos. Incluye cuotas para la constitución del fondo de ahorro, y cuotas para el fondo de trabajo del personal del Ejército, Fuerza Aérea y Armada Mexicanos que corresponden al Gobierno Federal para la constitución de este fondo, en los términos de la Ley del ISSFAM.
A66: 55 | E66: 1511 | F66: Cuotas para el fondo de ahorro
A67: 56 | E67: 1512 | F67: Cuotas para fondo de trabajo
A68: 57 | D68: 1520 | F68: Indemnizaciones | G68: 1520 | H68: 152 Indemnizaciones | I68: Asignaciones destinadas a cubrir indemnizaciones al personal conforme a la legislación aplicable; tales como: por accidente de trabajo, por despido, entre otros.
A69: 58 | E69: 1521 | F69: Indemnizaciones por accidentes en el trabajo
A70: 59 | E70: 1522 | F70: Liquidaciones por indemnizaciones y por sueldos y salarios caídos
A71: 60 | E71: 1523 | F71: Pago por riesgo
A72: 61 | D72: 1530 | F72: Prestaciones y haberes de retiro | G72: 1530 | H72: 153 Prestaciones y haberes de retiro | I72: Erogaciones que los entes públicos realizan en beneficio de sus empleados por jubilaciones, haberes de retiro, pensiones, retiro voluntario entre otros, cuando estas prestaciones no sean cubiertas por las instituciones de seguridad social. Incluye las asignaciones por concepto de aguinaldo a favor de pensionistas, cuyo pago se realice con cargo al erario. Incluye compensaciones de retiro a favor del personal del Servicio Exterior Mexicano, en los términos de la ley de la materia.
A73: 62 | E73: 1531 | F73: Prestaciones de retiro
A74: 63 | E74: 1532 | F74: Haberes de retiro
A75: 64 | D75: 1540 | F75: Prestaciones contractuales | G75: 1540 | H75: 154 Prestaciones contractuales | I75: Asignaciones destinadas a cubrir el costo de las prestaciones que los entes públicos otorgan en beneficio de sus empleados, de conformidad con las condiciones generales de trabajo o los contratos colectivos de trabajo.
A76: 65 | E76: 1541 | F76: Prestaciones establecidas por condiciones generales de trabajo
A77: 66 | D77: 1550 | F77: Apoyos a la capacitación de los servidores públicos | G77: 1550 | H77: 155 Apoyos a la capacitación de los servidores públicos | I77: Erogaciones destinadas a apoyar la capacitación orientada al desarrollo personal o profesional de los servidores públicos que determinen los entes públicos o que en forma individual se soliciten, de conformidad con las disposiciones que se emitan para su otorgamiento. Excluye las erogaciones por capacitación comprendidas en el capítulo 3000 Servicios Generales.
A78: 67 | E78: 1551 | F78: Capacitación de los servidores públicos
A79: 68 | D79: 1560 | F79: Otras prestaciones sociales y económicas | G79: 1590 | H79: 159 Otras prestaciones sociales y económicas | I79: Asignaciones destinadas a cubrir el costo de otras prestaciones que los entes públicos otorgan en beneficio de sus empleados, siempre que no correspondan a las prestaciones a que se refiere la partida 154 Prestaciones contractuales.
A80: 69 | E80: 1561 | F80: Asignaciones adicionales al sueldo
A81: 70 | E81: 1562 | F81: Otras prestaciones
A82: 71 | C82: 1600 | F82: Previsiones | G82: 1600 | H82: 1600 PREVISIONES | I82: Asignaciones destinadas a cubrir las medidas de incremento en percepciones, prestaciones económicas, creación de plazas y, en su caso, otras medidas salariales y económicas que se aprueben en el Presupuesto de Egresos. Las partidas de este concepto no se ejercerán en forma directa, sino a través de las partidas que correspondan a los demás conceptos del capítulo 1000 Servicios Personales, que sean objeto de traspaso de estos recursos.
A83: 72 | D83: 1610 | F83: Previsiones de carácter laboral, económica y de seguridad social | G83: 1610 | H83: 161 Previsiones de carácter laboral, económica y de seguridad social | I83: Asignaciones destinadas a cubrir las medidas de incremento en percepciones, creación de plazas, aportaciones en términos de seguridad social u otras medidas de carácter laboral o económico de los servidores públicos que se aprueben en el Presupuesto de Egresos. Esta partida no se ejercerá en forma directa, sino a través de las partidas que correspondan a los demás conceptos del capítulo 1000 Servicios Personales, que sean objeto de traspaso de estos recursos. Estas se considerarán como transitorias en tanto se distribuye su monto entre las partidas específicas necesarias para los programas, por lo que su asignación se afectará una vez ubicada en las partidas correspondientes, según la naturaleza de las erogaciones y previa aprobación, de acuerdo con lineamientos específicos.
A84: 73 | E84: 1611 | F84: Previsiones de carácter laboral
A85: 74 | E85: 1612 | F85: Previsiones de carácter económico
A86: 75 | E86: 1613 | F86: Previsiones de carácter de seguridad social
A87: 76 | C87: 1700 | F87: Pago de estímulos a servidores públicos | G87: 1700 | H87: 1700 PAGO DE ESTIMULOS A SERVIDORES PUBLICOS | I87: Asignaciones destinadas a cubrir estímulos económicos a los servidores públicos de mando, enlace y operativos de los entes públicos, que establezcan las disposiciones aplicables, derivado del desempeño de sus funciones.
A88: 77 | D88: 1710 | F88: Estímulos | G88: 1710 | H88: 171 Estímulos | I88: Asignaciones destinadas a cubrir los estímulos al personal de los entes públicos por productividad, desempeño, calidad, acreditación por titulación de licenciatura, años de servicio, puntualidad y asistencia, entre otros; de acuerdo con la normatividad aplicable.
A89: 78 | E89: 1711 | F89: Estímulos por productividad y eficiencia
A90: 79 | E90: 1712 | F90: Estímulos al personal operativo
A91: 80 | D91: 1720 | F91: Recompensas | G91: 1720 | H91: 172 Recompensas | I91: Asignaciones destinadas a premiar el heroísmo, capacidad profesional, servicios a la Patria o demás hechos meritorios; así como a la distinguida actuación del personal militar o civil, que redunde en beneficio de la Armada de México, se otorgarán de acuerdo con la legislación vigente.
A92: 81 | E92: 1721 | F92: Recompensas
A93: 82 | C93: 1800 | F93: Impuesto sobre nóminas y otros que se deriven de una relación laboral | G93: 1800 | H93: 1800 IMPUESTO SOBRE NOMINAS Y OTROS QUE SE DERIVEN DE UNA RELACION LABORAL | I93: Asignaciones destinadas a cubrir los pagos del impuesto sobre nóminas y otros que se deriven de una relación laboral a cargo de los entes públicos en los términos de las leyes correspondientes.
A94: 83 | D94: 1810 | F94: Impuesto sobre nóminas | G94: 1810 | H94: 181 Impuesto sobre nóminas | I94: Asignaciones destinadas al pago del impuesto sobre nóminas a cargo de los entes públicos, de conformidad con el Código Financiero del Distrito Federal y, en su caso, las disposiciones equivalentes en las demás entidades federativas.
A95: 84 | E95: 1811 | F95: Impuesto sobre nóminas
A96: 85 | D96: 1820 | F96: Otros impuestos derivados de una relación laboral | G96: 1820 | H96: 182 Otros impuestos derivados de una relación laboral | I96: Asignaciones destinadas al pago de otros impuestos derivados de la relación laboral.
A97: 86 | E97: 1821 | F97: Otros impuestos
A98: 87 | B98: 2000 | F98: MATERIALES Y SUMINISTROS | G98: 2000 | H98: 2000 MATERIALES Y SUMINISTROS | I98: Agrupa las asignaciones destinadas a la adquisición de toda clase de insumos y suministros requeridos para la prestación de bienes y servicios y para el desempeño de las actividades administrativas.
A99: 88 | C99: 2100 | F99: Materiales de administración, emisión de documentos y artículos oficiales | G99: 2100 | H99: 2100 MATERIALES DE ADMINISTRACION, EMISION DE DOCUMENTOS Y ARTICULOS OFICIALES | I99: Asignaciones destinadas a la adquisición de materiales y útiles de oficina, limpieza, impresión y reproducción, para el procesamiento en equipos y bienes informáticos; materiales estadísticos, geográficos, de apoyo informativo y didáctico para centros de enseñanza e investigación; materiales requeridos para el registro e identificación en trámites oficiales y servicios a la población.
A100: 89 | D100: 2110 | F100: Materiales, útiles y equipos menores de oficina | G100: 2110 | H100: 211 Materiales, útiles y equipos menores de oficina | I100: Asignaciones destinadas a la adquisición de materiales, artículos diversos y equipos menores propios para el uso de las oficinas tales como: papelería, formas, libretas, carpetas y cualquier tipo de papel, vasos y servilletas desechables, limpia-tipos; útiles de escritorio como engrapadoras, perforadoras manuales, sacapuntas; artículos de dibujo, correspondencia y archivo; cestos de basura y otros productos similares. Incluye la adquisición de artículos de envoltura, sacos y valijas, entre otros.
A101: 90 | E101: 2111 | F101: Materiales y útiles de oficina
A102: 91 | E102: 2112 | F102: Equipos menores de oficina
A103: 92 | D103: 2120 | F103: Materiales y útiles de impresión y reproducción | G103: 2120 | H103: 212 Materiales y útiles de impresión y reproducción | I103: Asignaciones destinadas a la adquisición de materiales utilizados en la impresión, reproducción y encuadernación, tales como: fijadores, tintas, pastas, logotipos y demás materiales y útiles para el mismo fin. Incluye rollos fotográficos.
A104: 93 | E104: 2121 | F104: Materiales y útiles de impresión y reproducción
A105: 94 | D105: 2130 | F105: Material estadístico y geográfico | G105: 2130 | H105: 213 Material estadístico y geográfico | I105: Asignaciones destinadas a la adquisición de publicaciones relacionadas con información estadística y geográfica. Se incluye la cartografía y publicaciones tales como: las relativas a indicadores económicos y socio-demográficos, cuentas nacionales, estudios geográficos y geodésicos, mapas, planos, fotografías aéreas y publicaciones relacionadas con información estadística y geográfica.
A106: 95 | E106: 2131 | F106: Material estadístico y geográfico
A107: 96 | D107: 2140 | F107: Materiales, útiles y equipos menores de tecnologías de la información y comunicaciones | G107: 2140 | H107: 214 Materiales, útiles y equipos menores de tecnologías de la información y comunicaciones | I107: Asignaciones destinadas a la adquisición de insumos y equipos menores utilizados en el procesamiento, grabación e impresión de datos, así como los materiales para la limpieza y protección de los equipos tales como: tóner, medios ópticos y magnéticos, apuntadores y protectores, entre otros.
A108: 97 | E108: 2141 | F108: Materiales y útiles de tecnologías de la información y comunicaciones
A109: 98 | E109: 2142 | F109: Equipos menores de tecnologías de la información y comunicaciones
A110: 99 | D110: 2150 | F110: Material impreso e información digital | G110: 2150 | H110: 215 Material impreso e información digital | I110: Asignaciones destinadas a la adquisición de toda clase de libros, revistas, periódicos, publicaciones, diarios oficiales, gacetas, material audiovisual, cassettes, discos compactos distintos a la adquisición de bienes intangibles (software). Incluye la suscripción a revistas y publicaciones especializadas, folletos, catálogos, formatos y otros productos mediante cualquier técnica de impresión y sobre cualquier tipo de material. Incluye impresión sobre prendas de vestir, producción de formas continuas, impresión rápida, elaboración de placas, clichés y grabados. Excluye conceptos considerados en la partida 213 Material estadístico y geográfico.
A111: 100 | E111: 2151 | F111: Material impreso e información digital
A112: 101 | D112: 2160 | F112: Material de limpieza | G112: 2160 | H112: 216 Material de limpieza | I112: Asignaciones destinadas a la adquisición de materiales, artículos y enseres para el aseo, limpieza e higiene, tales como: escobas, jergas, detergentes, jabones y otros productos similares.
A113: 102 | E113: 2161 | F113: Material de limpieza
A114: 103 | D114: 2170 | F114: Materiales y útiles de enseñanza | G114: 2170 | H114: 217 Materiales y útiles de enseñanza | I114: Asignaciones destinadas a la adquisición de todo tipo de material didáctico así como materiales y suministros necesarios para las funciones educativas.
A115: 104 | E115: 2171 | F115: Materiales y útiles de enseñanza
A116: 105 | D116: 2180 | F116: Materiales para el registro e identificación de bienes y personas | G116: 2180 | H116: 218 Materiales para el registro e identificación de bienes y personas | I116: Asignaciones destinadas a la adquisición de materiales requeridos para el registro e identificación en trámites oficiales y servicios a la población, tales como: pasaportes, certificados especiales, formas valoradas, placas de tránsito, licencias de conducir, entre otras.
A117: 106 | E117: 2181 | F117: Materiales para el registro e identificación de bienes
A118: 107 | E118: 2182 | F118: Materiales para el registro e identificación de personas
A119: 108 | C119: 2200 | F119: Alimentos y utensilios | G119: 2200 | H119: 2200 ALIMENTOS Y UTENSILIOS | I119: Asignaciones destinadas a la adquisición de productos alimenticios y utensilios necesarios para el servicio de alimentación en apoyo de las actividades de los servidores públicos y los requeridos en la prestación de servicios públicos en unidades de salud, educativas y de readaptación social, entre otras. Excluye los gastos por alimentación previstos en los conceptos 3700 Servicios de Traslado y Viáticos y 3800 Servicios Oficiales.
A120: 109 | D120: 2210 | F120: Productos alimenticios para personas | G120: 2210 | H120: 221 Productos alimenticios para personas | I120: Asignaciones destinadas a la adquisición de todo tipo de productos alimenticios y bebidas manufacturados o no, independiente de la modalidad de compra o contratación, derivado de la ejecución de los programas institucionales tales como: salud, seguridad social, educativos, militares, culturales y recreativos, cautivos y reos en proceso de readaptación social, repatriados y extraditados, personal que realiza labores de campo o supervisión dentro del lugar de adscripción; derivado de programas que requieren permanencia de servidores públicos en instalaciones del ente público, así como en el desempeño de actividades extraordinarias en el cumplimiento de la función pública. Excluye Viáticos (partidas 375 y 376), gastos derivados del concepto 3800 Servicios Oficiales y 133 Horas Extraordinarias no justificadas.
A121: 110 | E121: 2211 | F121: Productos alimenticios para los efectivos que participen en programas de seguridad pública
A122: 111 | E122: 2212 | F122: Productos alimenticios para el personal en las instalaciones de las dependencias y entidades
A123: 112 | E123: 2213 | F123: Productos alimenticios para la población en caso de desastres naturales
A124: 113 | D124: 2220 | F124: Productos alimenticios para animales | G124: 2220 | H124: 222 Productos alimenticios para animales | I124: Asignaciones destinadas a la adquisición de productos alimenticios para la manutención de animales propiedad o bajo el cuidado de los entes públicos, tales como: forrajes frescos y achicalados, alimentos preparados, entre otros, así como los demás gastos necesarios para la alimentación de los mismos.
A125: 114 | E125: 2221 | F125: Productos alimenticios para animales
A126: 115 | D126: 2230 | F126: Utensilios para el servicio de alimentación | G126: 2230 | H126: 223 Utensilios para el servicio de alimentación | I126: Asignaciones destinadas a la adquisición de todo tipo de utensilios necesarios para proporcionar este servicio, tales como: vajillas, cubiertos, baterías de cocina, licuadoras, tostadoras, cafeteras, básculas y demás electrodomésticos y bienes consumibles en operaciones a corto plazo.
A127: 116 | E127: 2231 | F127: Utensilios para el servicio de alimentación
A128: 117 | C128: 2300 | F128: Materias primas y materiales de producción y comercialización | G128: 2300 | H128: 2300 MATERIAS PRIMAS Y MATERIALES DE PRODUCCION Y COMERCIALIZACION | I128: Asignaciones destinadas a la adquisición de toda clase de materias primas en estado natural, transformadas o semi-transformadas de naturaleza vegetal, animal y mineral que se utilizan en la operación de los entes públicos, así como las destinadas a cubrir el costo de los materiales, suministros y mercancías diversas que los entes adquieren para su comercialización.
A129: 118 | D129: 2310 | F129: Productos alimenticios, agropecuarios y forestales adquiridos como materia prima | G129: 2310 | H129: 231 Productos alimenticios, agropecuarios y forestales adquiridos como materia prima | I129: Asignaciones destinadas a la adquisición de productos alimenticios como materias primas en estado natural, transformadas o semi-transformadas, de naturaleza vegetal y animal que se utilizan en los procesos productivos, diferentes a las contenidas en las demás partidas de este Clasificador.
A130: 119 | E130: 2311 | F130: Productos alimenticios, agropecuarios y forestales
A131: 120 | E131: 2312 | F131: Material agropecuario
A132: 121 | D132: 2320 | F132: Insumos textiles adquiridos como materia prima | G132: 2320 | H132: 232 Insumos textiles adquiridos como materia prima | I132: Asignaciones destinadas a la adquisición de insumos textiles como materias primas en estado natural, transformadas o semi-transformadas, que se utilizan en los procesos productivos, diferentes a las contenidas en las demás partidas de este Clasificador.
A133: 122 | E133: 2321 | F133: Insumos textiles
A134: 123 | D134: 2330 | F134: Productos de papel, cartón e impresos adquiridos como materia prima | G134: 2330 | H134: 233 Productos de papel, cartón e impresos adquiridos como materia prima | I134: Asignaciones destinadas a la adquisición de papel, cartón e impresos como materias primas en estado natural, transformadas o semi-transformadas, que se utilizan en los procesos productivos, diferentes a las contenidas en las demás partidas de este Clasificador.
A135: 124 | E135: 2331 | F135: Productos de papel, cartón e impresos
A136: 125 | D136: 2340 | F136: Combustibles, lubricantes, aditivos, carbón y sus derivados adquiridos como materia prima | G136: 2340 | H136: 234 Combustibles, lubricantes, aditivos, carbón y sus derivados adquiridos como materia prima | I136: Asignaciones destinadas a la adquisición de combustibles, lubricantes y aditivos como materias primas en estado natural, transformadas o semi-transformadas, que se utilizan en los procesos productivos, diferentes a las contenidas en las demás partidas del concepto 2600 Combustibles, lubricantes y aditivos este Clasificador.
A137: 126 | E137: 2341 | F137: Combustibles, lubricantes, aditivos, carbon y sus derivados
A138: 127 | D138: 2350 | F138: Productos químicos, farmacéuticos y de laboratorio adquiridos como materia prima | G138: 2350 | H138: 235 Productos químicos, farmacéuticos y de laboratorio adquiridos como materia prima | I138: Asignaciones destinadas a la adquisición de medicamentos farmacéuticos y botánicos, productos antisépticos de uso farmacéutico, sustancias para diagnóstico, complementos alimenticios, plasmas y otros derivados de la sangre y productos médicos veterinarios, entre otros, como materias primas en estado natural, transformadas o semi-transformadas, que se utilizan en los procesos productivos, diferentes a las contenidas en las demás partidas de este Clasificador.
A139: 128 | E139: 2351 | F139: Productos químicos, farmacéuticos y de laboratorio
A140: 129 | D140: 2360 | F140: Productos metálicos y a base de minerales no metálicos adquiridos como materia prima | G140: 2360 | H140: 236 Productos metálicos y a base de minerales no metálicos adquiridos como materia prima | I140: Asignaciones destinadas a la adquisición de productos metálicos y a base de minerales no metálicos como materias primas en estado natural, transformadas o semi-transformadas, que se utilizan en los procesos productivos, diferentes a las contenidas en las demás partidas de este Clasificador.
A141: 130 | E141: 2361 | F141: Productos metálicos y a base de minerales no metálicos
A142: 131 | D142: 2370 | F142: Productos de cuero, piel, plástico y hule adquiridos como materia prima | G142: 2370 | H142: 237 Productos de cuero, piel, plástico y hule adquiridos como materia prima | I142: Asignaciones destinadas a la adquisición de cuero, piel, plástico y hule como materias primas en estado natural, transformadas o semi-transformadas, que se utilizan en los procesos productivos, diferentes a las contenidas en las demás partidas de este Clasificador.
A143: 132 | E143: 2371 | F143: Productos de cuero, piel, plástico y hule
A144: 133 | D144: 2380 | F144: Mercancías adquiridas para su comercialización | G144: 2380 | H144: 238 Mercancías adquiridas para su comercialización | I144: Artículos o bienes no duraderos que adquiere la entidad para destinarlos a la comercialización de acuerdo con el giro normal de actividades del ente público.
A145: 134 | E145: 2381 | F145: Mercancías para su comercialización en tiendas del sector público
A146: 135 | E146: 2382 | F146: Mercancías para su distribución a la población
A147: 136 | D147: 2390 | F147: Otros productos adquiridos como materia prima | G147: 2390 | H147: 239 Otros productos adquiridos como materia prima | I147: Asignaciones destinadas a la adquisición de otros productos no considerados en las partidas anteriores de este concepto, como materias primas en estado natural, transformadas o semi-transformadas, que se utilizan en los procesos productivos, diferentes a las contenidas en las demás partidas de este Clasificador.
A148: 137 | E148: 2391 | F148: Otros productos
A149: 138 | C149: 2400 | F149: Materiales y artículos de construcción y de reparación | G149: 2400 | H149: 2400 MATERIALES Y ARTICULOS DE CONSTRUCCION Y DE REPARACION | I149: Asignaciones destinadas a la adquisición de materiales y artículos utilizados en la construcción, reconstrucción, ampliación, adaptación, mejora, conservación, reparación y mantenimiento de bienes inmuebles.
A150: 139 | D150: 2410 | F150: Productos minerales no metálicos | G150: 2410 | H150: 241 Productos minerales no metálicos | I150: Asignaciones destinadas a la adquisición de productos de arena, grava, mármol, piedras calizas, piedras de cantera, otras piedras dimensionadas, arcillas refractarias y no refractarias y cerámica como ladrillos, bloques, tejas, losetas, pisos, azulejos, mosaicos y otros similares para la construcción; cerámica utilizada en la agricultura; loza y porcelana para diversos usos como inodoros, lavamanos, mingitorios y otros similares.
A151: 140 | E151: 2411 | F151: Materiales de construcción minerales no metálicos
A152: 141 | D152: 2420 | F152: Cemento y productos de concreto | G152: 2420 | H152: 242 Cemento y productos de concreto | I152: Asignaciones destinadas a la adquisición de cemento blanco, gris y especial, pega azulejo y productos de concreto.
A153: 142 | E153: 2421 | F153: Materiales de construcción de concreto
A154: 143 | D154: 2430 | F154: Cal, yeso y productos de yeso | G154: 2430 | H154: 243 Cal, yeso y productos de yeso | I154: Asignaciones destinadas a la adquisición de tabla roca, plafones, paneles acústicos, columnas, molduras, estatuillas, figuras decorativas de yeso y otros productos arquitectónicos de yeso de carácter ornamental. Incluye dolomita calcinada. Cal viva, hidratada o apagada y cal para usos específicos a partir de piedra caliza triturada.
A155: 144 | E155: 2431 | F155: Materiales de construcción de cal y yeso
A156: 145 | D156: 2440 | F156: Madera y productos de madera | G156: 2440 | H156: 244 Madera y productos de madera | I156: Asignaciones destinadas a la adquisición de madera y sus derivados.
A157: 146 | E157: 2441 | F157: Materiales de construcción de madera
A158: 147 | D158: 2450 | F158: Vidrio y productos de vidrio | G158: 2450 | H158: 245 Vidrio y productos de vidrio | I158: Asignaciones destinadas a la adquisición de vidrio plano, templado, inastillable y otros vidrios laminados; espejos; envases y artículos de vidrio y fibra de vidrio.
A159: 148 | E159: 2451 | F159: Materiales de construcción de vidrio
A160: 149 | D160: 2460 | F160: Material eléctrico y electrónico | G160: 2460 | H160: 246 Material eléctrico y electrónico | I160: Asignaciones destinadas a la adquisición de todo tipo de material eléctrico y electrónico tales como: cables, interruptores, tubos fluorescentes, focos, aislantes, electrodos, transistores, alambres, lámparas, entre otros, que requieran las líneas de transmisión telegráfica, telefónica y de telecomunicaciones, sean aéreas, subterráneas o submarinas; igualmente para la adquisición de materiales necesarios en las instalaciones radiofónicas, radiotelegráficas, entre otras.
A161: 150 | E161: 2461 | F161: Material eléctrico y electrónico
A162: 151 | D162: 2470 | F162: Artículos metálicos para la construcción | G162: 2470 | H162: 247 Artículos metálicos para la construcción | I162: Asignaciones destinadas a cubrir los gastos por adquisición de productos para construcción hechos de hierro, acero, aluminio, cobre, zinc, bronce y otras aleaciones, tales como: lingotes, planchas, planchones, hojalata, perfiles, alambres, varillas, ventanas y puertas metálicas, clavos, tornillos y tuercas de todo tipo; mallas ciclónicas y cercas metálicas, etc.
A163: 152 | E163: 2471 | F163: Estructuras y manufacturas
A164: 153 | D164: 2480 | F164: Materiales complementarios | G164: 2480 | H164: 248 Materiales complementarios | I164: Asignaciones destinadas a la adquisición de materiales para el acondicionamiento de las obras públicas y bienes inmuebles, tales como: tapices, pisos, persianas y demás accesorios.
A165: 154 | E165: 2481 | F165: Materiales complementarios
A166: 155 | D166: 2490 | F166: Otros materiales y artículos de construcción y reparación | G166: 2490 | H166: 249 Otros materiales y artículos de construcción y reparación | I166: Asignaciones destinadas a cubrir la adquisición de otros materiales para construcción y reparación no considerados en las partidas anteriores tales como: Productos de fricción o abrasivos a partir de polvos minerales sintéticos o naturales para obtener productos como piedras amolares, esmeriles de rueda, abrasivos en polvo, lijas, entre otros; pinturas, recubrimientos, adhesivos y selladores, como barnices, lacas y esmaltes; adhesivos o pegamento, impermeabilizantes, masillas, resanadores, gomas-cemento y similares, thinner y removedores de pintura y barniz, entre otros.
A167: 156 | E167: 2491 | F167: Materiales diversos
A168: 157 | C168: 2500 | F168: Productos químicos, farmacéuticos y de laboratorio | G168: 2500 | H168: 2500 PRODUCTOS QUIMICOS, FARMACEUTICOS Y DE LABORATORIO | I168: Asignaciones destinadas a la adquisición de sustancias, productos químicos y farmacéuticos de aplicación humana o animal; así como toda clase de materiales y suministros médicos y de laboratorio.
A169: 158 | D169: 2510 | F169: Productos químicos básicos | G169: 2510 | H169: 251 Productos químicos básicos | I169: Asignaciones destinadas a la adquisición de productos químicos básicos: petroquímicos como benceno, tolueno, xileno, etileno, propileno, estireno a partir del gas natural, del gas licuado del petróleo y de destilados y otras fracciones posteriores a la refinación del petróleo; reactivos, fluoruros, fosfatos, nitratos, óxidos, alquinos, marcadores genéticos, entre otros.
A170: 159 | E170: 2511 | F170: Sustancias químicas
A171: 160 | D171: 2520 | F171: Fertilizantes, pesticidas y otros agroquímicos | G171: 2520 | H171: 252 Fertilizantes, pesticidas y otros agroquímicos | I171: Asignaciones destinadas a la adquisición de fertilizantes nitrogenados, fosfatados, biológicos procesados o de otro tipo, mezclas, fungicidas, herbicidas, plaguicidas, raticidas, antigerminantes, reguladores del crecimiento de las plantas y nutrientes de suelos, entre otros. Incluye los abonos que se comercializan en estado natural.
A172: 161 | E172: 2521 | F172: Fertilizantes y abonos
A173: 162 | E173: 2522 | F173: Plaguicidas y pesticidas
A174: 163 | D174: 2530 | F174: Medicinas y productos farmacéuticos | G174: 2530 | H174: 253 Medicinas y productos farmacéuticos | I174: Asignaciones destinadas a la adquisición de medicinas y productos farmacéuticos de aplicación humana o animal, tales como: vacunas, drogas, medicinas de patente, medicamentos, sueros, plasma, oxígeno, entre otros. Incluye productos fármaco-químicos como alcaloides, antibióticos, hormonas y otros compuestos y principios activos.
A175: 164 | E175: 2531 | F175: Medicinas y productos farmacéuticos
A176: 165 | D176: 2540 | F176: Materiales, accesorios y suministros médicos | G176: 2540 | H176: 254 Materiales, accesorios y suministros médicos | I176: Asignaciones destinadas a la adquisición de toda clase de materiales y suministros médicos que se requieran en hospitales, unidades sanitarias, consultorios, clínicas veterinarias, etc., tales como: jeringas, gasas, agujas, vendajes, material de sutura, espátulas, lentes, lancetas, hojas de bisturí y prótesis en general.
A177: 166 | E177: 2541 | F177: Materiales, accesorios y suministros médicos
A178: 167 | D178: 2550 | F178: Materiales, accesorios y suministros de laboratorio | G178: 2550 | H178: 255 Materiales, accesorios y suministros de laboratorio | I178: Asignaciones destinadas a la adquisición de toda clase de materiales y suministros, tales como: cilindros graduados, matraces, probetas, mecheros, tanques de revelado, materiales para radiografía, electrocardiografía, medicina nuclear y demás materiales y suministros utilizados en los laboratorios médicos, químicos, de investigación, fotográficos, cinematográficos, entre otros. Esta partida incluye animales para experimentación.
A179: 168 | E179: 2551 | F179: Materiales, accesorios y suministros de laboratorio
A180: 169 | D180: 2560 | F180: Fibras sintéticas, hules, plásticos y derivados | G180: 2560 | H180: 256 Fibras sintéticas, hules, plásticos y derivados | I180: Asignaciones destinadas a cubrir erogaciones por adquisición de productos a partir del hule o de resinas plásticas, perfiles, tubos y conexiones, productos laminados, placas espumas, envases y contenedores, entre otros productos. Incluye P.V.C.
A181: 170 | E181: 2561 | F181: Fibras sintéticas, hules, plásticos y derivados
A182: 171 | D182: 2590 | F182: Otros productos químicos | G182: 2590 | H182: 259 Otros productos químicos | I182: Asignaciones destinadas a la adquisición de productos químicos básicos inorgánicos tales como: ácidos, bases y sales inorgánicas, cloro, negro de humo y el enriquecimiento de materiales radiactivos. Así como productos químicos básicos orgánicos, tales como: ácidos, anhídridos, alcoholes de uso industrial, cetonas, aldehídos, ácidos grasos, aguarrás, colofonia, colorantes naturales no comestibles, materiales sintéticos para perfumes y cosméticos, edulcorantes sintéticos, entre otros.
A183: 172 | C183: 2600 | F183: Combustibles, lubricantes y aditivos | G183: 2600 | H183: 2600 COMBUSTIBLES, LUBRICANTES Y ADITIVOS | I183: Asignaciones destinadas a la adquisición de combustibles, lubricantes y aditivos de todo tipo, necesarios para el funcionamiento de vehículos de transporte terrestres, aéreos, marítimos, lacustres y fluviales; así como de maquinaria y equipo.
A184: 173 | D184: 2610 | F184: Combustibles, lubricantes y aditivos | G184: 2610 | H184: 261 Combustibles, lubricantes y aditivos | I184: Asignaciones destinadas a la adquisición de productos derivados del petróleo (como gasolina, diesel, leña, etc.), aceites y grasas lubricantes para el uso en equipo de transporte e industrial y regeneración de aceite usado. Incluye etanol y biogás, entre otros. Excluye el petróleo crudo y gas natural, así como los combustibles utilizados como materia prima.
A185: 174 | E185: 2611 | F185: Combustibles, lubricantes y aditivos para vehículos destinados a la ejecución de programas de seguridad pública
A186: 175 | E186: 2612 | F186: Combustibles, lubricantes y aditivos para vehículos terrestres, aéreos, marítimos, lacustres y fluviales asignados a servidores públicos
A187: 176 | E187: 2613 | F187: Combustibles, lubricantes y aditivos para maquinaria, equipo de producción y servicios administrativos
A188: 177 | D188: 2620 | F188: Carbón y sus derivados | G188: 2620 | H188: 262 Carbón y sus derivados | I188: Asignaciones destinadas a la adquisición de productos químicos derivados de la coquización del carbón y las briquetas de carbón. Excluye el carbón utilizado como materia prima.
A189: 178 | E189: 2621 | F189: Carbón y sus derivados
A190: 179 | C190: 2700 | F190: Vestuario, blancos, prendas de protección y artículos deportivos | G190: 2700 | H190: 2700 VESTUARIO, BLANCOS, PRENDAS DE PROTECCION Y ARTICULOS DEPORTIVOS | I190: Asignaciones destinadas a la adquisición de vestuario y sus accesorios, blancos, artículos deportivos; así como prendas de protección personal diferentes a las de seguridad.
A191: 180 | D191: 2710 | F191: Vestuario y uniformes | G191: 2710 | H191: 271 Vestuario y uniformes | I191: Asignaciones destinadas a la adquisición de toda clase de prendas de vestir: de punto, ropa de tela, cuero y piel y a la fabricación de accesorios de vestir: camisas, pantalones, trajes, calzado; uniformes y sus accesorios: insignias, distintivos, emblemas, banderas, banderines, uniformes y ropa de trabajo, calzado.
A192: 181 | E192: 2711 | F192: Vestuario y uniformes
A193: 182 | D193: 2720 | F193: Prendas de seguridad y protección personal | G193: 2720 | H193: 272 Prendas de seguridad y protección personal | I193: Asignaciones destinadas a la adquisición de ropa y equipo de máxima seguridad, prendas especiales de protección personal, tales como: guantes, botas de hule y asbesto, de tela o materiales especiales, cascos, caretas, lentes, cinturones y demás prendas distintas de las prendas de protección para seguridad pública y nacional.
A194: 183 | E194: 2721 | F194: Prendas de seguridad
A195: 184 | E195: 2722 | F195: Prendas de protección personal
A196: 185 | D196: 2730 | F196: Artículos deportivos | G196: 2730 | H196: 273 Artículos deportivos | I196: Asignaciones destinadas a la adquisición de todo tipo de artículos deportivos, tales como: balones, redes, trofeos, raquetas, guantes, entre otros, que los entes públicos realizan en cumplimiento de su función pública.
A197: 186 | E197: 2731 | F197: Artículos deportivos
A198: 187 | D198: 2740 | F198: Productos textiles | G198: 2740 | H198: 274 Productos textiles | I198: Asignaciones destinadas a la adquisición de fibras naturales como lino, seda, algodón, ixtle y henequén; hilados e hilos de fibras naturales o sintéticas; telas, acabados y recubrimientos; alfombras, tapetes, cortinas, costales, redes y otros productos textiles que no sean prendas de vestir.
A199: 188 | E199: 2741 | F199: Productos textiles
A200: 189 | D200: 2750 | F200: Blancos y otros productos textiles, excepto prendas de vestir | G200: 2750 | H200: 275 Blancos y otros productos textiles, excepto prendas de vestir | I200: Asignaciones destinadas a la adquisición todo tipo de blancos: batas, colchas, sábanas, fundas, almohadas, toallas, cobertores, colchones y colchonetas, entre otros.
A201: 190 | E201: 2751 | F201: Blancos y otros productos textiles, excepto prendas de vestir
... 602 more rows
